Workbook

Sheet RMBM
A1: Calendrical and Astronomical Calculations based on Hilchot Kiddush HaChodesh
A2: Programmed and compiled by Dr. Irv Bromberg, Toronto, Canada <http://individual.utoronto.ca/kalendis/hebrew/> | F2: Revised 2022-03-10
A3: http://individual.utoronto.ca/kalendis/hebrew/RMBM-seasons.htm
A4: "CC" refers to the book "Calendrical Calculations", 3rd edition, by Nachum Dershowitz and Edward M. Reingold, see <http://www.calendarists.com>.
A5: Chabad's on-line copy of Hilchot Kiddush HaChodesh is at <https://www.chabad.org/library/article_cdo/aid/947915/jewish/Kiddush-HaChodesh.htm>.
A7: The zodiac signs as referenced by Rambam always refer to each 30° ecliptic longitude division, measured eastward from the solar position at the northward equinox.
A8: Due to precession of the equinoxes, these signs are not the same as the astronomical or astrological zodiac constellations that share the same names.
A10: Chapter | B10: # | C10: English Terms | D10: עִברִית | E10: Decimal # | F10: Separated # | G10: Comments
C11: Epoch Dates
A12: CC | C12: Hebrew Epoch | D12: תְחִלָת החשבון | E12: =HebrewToFixed(1,7,1) -> -1373427 | G12: days counted before Gregorian epoch
A13: CC | C13: Check Date | E13: =FixedToHebrewString(E12) -> Yom Sheini, 1 Tishrei, 1 | G13: just after sunset, location undefined
A15: 11 | B15: 16 | C15: Rambam Epoch | D15: הַעִקָר שממנו מתחילין לחשבון זֶה | E15: =HebrewToFixed(4938,1,3) -> 429979 | G15: days counted from Gregorian epoch
A16: CC | C16: Check Date | E16: =FixedToHebrewString(E15+0.25) -> Yom Chamishi, 3 Nisan, 4938 | G16: just after sunset in Jerusalem
C18: Target Date and Time | F18: Years 3, 6, 8, 11, 14, 17, and 19 in each 19-year cycle are leap years.
C19: Hebrew Year since Creation | D19: שָׁנָה עִברִי יְצִירָה | E19: 5782 | F19: =IF(modulus(7*hYear+1,19)<7,,"Non-")&"Leap Year ("&amod(hYear,19)&" of 19)" -> Leap Year (6 of 19)
C20: Hebrew Month | D20: חוֹדֶשׁ עִברִי | E20: 7 | F20: Nisan=1 Iyar=2 Sivan=3 Tammuz=4 Av=5 Elul=6 Tishrei=7 Cheshvan=8 Kislev=9 Tevet=10 Shevat=11 Adar=12 Adar2=13
C21: Day of Hebrew Month | D21: יום שֶׁל חוֹדֶשׁ עִברִי | E21: 1
C22: Time of Day | E22: 18:30:00 | G22: HH:MM:SS after mean sunset (disregard AM / PM if Excel displays it)
A23: CC | C23: Fixed Day Number (rata die) | E23: =HebrewToFixed(hYear,hMonth,hDay) -> 738040 | G23: days counted from Gregorian epoch = 1
A24: CC | C24: Moment | E24: =FixedDay+TimeOfDay -> 738040.7708 | G24: at Jerusalem
C25: Check Hebrew Date | E25: =FixedToHebrewString(moment) -> Yom Shlishi, 1 Tishrei, 5782
A26: CC | C26: Gregorian Date | E26: =FixedToGregorianString(moment) -> Tuesday, September 7, 2021
A27: CC | C27: Julian Date | E27: =FixedToJulianString(moment,TRUE) -> Tuesday, August 25, MMXXI AD
A28: CC | C28: Julian Day Number | E28: =MomentToJD(moment)-2/24 -> 2459464.938 | G28: at Prime Meridian
A29: CC | C29: Days Elapsed from Hebrew Epoch | E29: =moment-hEpoch -> 2111467.7708 | G29: from mean sunset
C30: Days Elapsed from Rambam Epoch | E30: =moment-RMBMepoch -> 308061.7708
A31: 11 | B31: 16 | C31: Year with regard to contracts | D31: שָׁנָה לשְׁטָרות | E31: =hYear-3449 -> 2333
A32: 11 | B32: 16 | C32: Years after destruction of the Second Temple | D32: שָׁנָה מחוּרבָּן בַּיִת שֵׁנִי | E32: =hYear-3829 -> 1953
A34: 6 | C34: Traditional Molad | D34: מולד
A35: mine | B35: It is improper to translate or regard the molad as a "lunar conjunction" or even a "mean lunar conjunction". It is just Hebrew calendar arithmetic. See: <http://individual.utoronto.ca/kalendis/hebrew/molad.htm>.
A36: 6 | B36: 2 | C36: Divisors of 1080 (parts per hour = חלקים) = | D36: =Divisors(1080,0) -> 2, 3, 4, 5, 6, 8, 9, 10, 12, 15, 18, 20, 24, 27, 30, 36, 40, 45, 54, 60, 72, 90, 108, 120, 135, 180, 216, 270, 360, 540, 1080
A37: 6 | B37: 3 | C37: Traditional Molad Interval | D37: חדשה שֶׁל לְבָנָה | E37: =29+12/24+(44+1/18)/1440 -> 29.53059414 | F37: =" "&momenttodc(MoladInterval,5)&" = "&momenttodc(MoladInterval,6)&" = "&momenttodc(MoladInterval,9) -> 29 days 12 hours 44 minutes 1 part = 29 days 12 hours 793 parts = 29 days 13753 parts
A38: 6 | B38: 5 | C38: ="Remainder in Excess of "&QUOTIENT(E37,7)&" Weeks" -> Remainder in Excess of 4 Weeks | D38: שְׁאֵרִית חוֹדֶשׁ הַלְבָנָה | E38: =modulus(MoladInterval,7) -> 1.530594136 | F38: =" "&momenttodc(E38,5)&" = "&momenttodc(E38,6)&" = "&momenttodc(E38,9) -> 1 day 12 hours 44 minutes 1 part = 1 day 12 hours 793 parts = 1 day 13753 parts
A39: 6 | B39: 4 | C39: 12 Lunar Months | E39: =12*MoladInterval -> 354.3671296 | F39: =" "&momenttodc(E39,5)&" = "&momenttodc(E39,6)&" = "&momenttodc(E39,9) -> 354 days 8 hours 48 minutes 12 parts = 354 days 8 hours 876 parts = 354 days 9516 parts
A40: 6 | B40: 5 | C40: ="Remainder in Excess of "&QUOTIENT(E39,7)&" Weeks" -> Remainder in Excess of 50 Weeks | D40: שְׁאֵרִית שָׁנָה פָּשׁוּטה | E40: =modulus(E39,7) -> 4.36712963 | F40: =" "&momenttodc(E40,5)&" = "&momenttodc(E40,6)&" = "&momenttodc(E40,9) -> 4 days 8 hours 48 minutes 12 parts = 4 days 8 hours 876 parts = 4 days 9516 parts
A41: 6 | B41: 4 | C41: 13 Lunar Months | E41: =13*MoladInterval -> 383.8977238 | F41: =" "&momenttodc(E41,5)&" = "&momenttodc(E41,6)&" = "&momenttodc(E41,9) -> 383 days 21 hours 32 minutes 13 parts = 383 days 21 hours 589 parts = 383 days 23269 parts
A42: 6 | B42: 5 | C42: ="Remainder in Excess of "&QUOTIENT(E41,7)&" Weeks" -> Remainder in Excess of 54 Weeks | D42: שְׁאֵרִית שָׁנָה מְעוּבּרֶת | E42: =modulus(E41,7) -> 5.897723765 | F42: =" "&momenttodc(E42,5)&" = "&momenttodc(E42,6)&" = "&momenttodc(E42,9) -> 5 days 21 hours 32 minutes 13 parts = 5 days 21 hours 589 parts = 5 days 23269 parts
A43: 6 | B43: end 8 | C43: Molad Epoch | D43: מולד תוֹהוּ (בהר"ד) | E43: =TraditionalMolad(0) -> -1373426.7838 | F43: =" "&momenttoclock(MoladEpoch,5)&" = "&momenttoclock(MoladEpoch,6) -> 5 hours 11 minutes 6 parts = 5 hours 204 parts
A44: 6 | B44: 8 | C44: Hebrew Date of Molad Epoch | E44: =FixedToHebrewString(MoladEpoch) -> Yom Sheini, 1 Tishrei, 1
A45: 6 | B45: 12 | C45: Lunar Months per 19-Year Cycle | D45: חודשי הַלְבָנָה למַחזוֹר | E45: =19*12+7 -> 235
A46: 6 | B46: 12 | C46: =E45&" Lunar Months" -> 235 Lunar Months | E46: =E45*MoladInterval -> 6939.689622 | F46: =" "&momenttodc(E46,5)&" = "&momenttodc(E46,6)&" = "&momenttodc(E46,9) -> 6939 days 16 hours 33 minutes 1 part = 6939 days 16 hours 595 parts = 6939 days 17875 parts
A47: 6 | B47: 12 | C47: ="Remainder in Excess of "&QUOTIENT(E46,7)&" Weeks" -> Remainder in Excess of 991 Weeks | D47: שְׁאֵרִית הַמַחזוֹר | E47: =modulus(E46,7) -> 2.689621914 | F47: =" "&momenttodc(E47,5)&" = "&momenttodc(E47,6)&" = "&momenttodc(E47,9) -> 2 days 16 hours 33 minutes 1 part = 2 days 16 hours 595 parts = 2 days 17875 parts
A48: CC | C48: Lunar Months Elapsed from Hebrew Epoch | E48: =hMonth-7+QUOTIENT(235*IF(hMonth<7,hYear+1,hYear)-234,19) -> 71501 | G48: arithmetic is from "Calendrical Calculations" by Reingold & Dershowitz.
A49: CC | C49: Molad Moment | E49: =TraditionalMolad(MonthsElapsed) -> 738040.2275
A50: CC | C50: Fractional Portion of Molad Moment (time) | E50: =MomentToTimeOfDay(MoladMoment) -> 0.227507716 | F50: =" "&momenttoclock(MoladMoment,5)&" = "&momenttoclock(MoladMoment,6) -> 5 hours 27 minutes 11 parts = 5 hours 497 parts
A51: CC | C51: Molad Hebrew Date | E51: =FixedToHebrewString(MoladMoment) -> Yom Shlishi, 1 Tishrei, 5782
A53: 7 | C53: Rosh HaShannah | D53: ראשׁ הַשָׁנָה | G53: See: <http://individual.utoronto.ca/kalendis/hebrew/postpone.htm>
A54: CC | C54: ="Months Elapsed from Epoch to Tishrei "&hYear -> Months Elapsed from Epoch to Tishrei 5782 | E54: =QUOTIENT(235*hYear-234,19) -> 71501 | G54: elapsed months expression is simplest for Tishrei
A55: CC | C55: ="Molad of Tishrei for Hebrew year "&hYear -> Molad of Tishrei for Hebrew year 5782 | D55: מולד תשרי | E55: =TraditionalMolad(E54) -> 738040.2275
A56: CC | C56: Fractional Portion of Molad Moment (time) | E56: =MomentToTimeOfDay(E55) -> 0.227507716 | F56: =" "&momenttoclock(E56,5)&" = "&momenttoclock(E56,6) -> 5 hours 27 minutes 11 parts = 5 hours 497 parts
A57: CC | C57: Molad Hebrew Date | E57: =FixedToHebrewString(E55) -> Yom Shlishi, 1 Tishrei, 5782
A58: 7 | B58: 1 | C58: Molad weekday number (Sun=1 ... Sat=7) | E58: =FixedToWeekdayNum(E55)+1 -> 3
A59: 7 | B59: 1 | C59: Disallowed weekday? (Sun=1, Wed=4, Fri=6) | D59: לא אד"ו ראשׁ | E59: =modulus((MoladWeekdayNum-1)*3,7)<3 -> FALSE | F59: =IF(E59,"Postpone one day","") -> 
A60: 7 | B60: 2 | C60: "Old" Molad (on or after noon = 18th hour)? | D60: מולד זקן | E60: =E56>=0.75 -> FALSE | F60: =IF(E60,"Postpone one day","") -> 
A61: 7 | B61: 3 | C61: Disallowed weekday after old molad? | D61: לא אד"ו ראשׁ | E61: =AND(E60,modulus((MoladWeekdayNum)*3,7)<3) -> FALSE | F61: =IF(E61,"Postpone another day","") -> 
A62: mine | B62: Logically it is more efficient to check for Molad Zakein before checking for a disallowed weekday, to avoid a second check for disallowed weekday after applying the Zakein postponement.
A63: mine | B63: The logic can be simplified further by always adding 1/4 day to the moment of the molad of Tishrei, which eliminates the need for the molad zakein rule altogether.
A64: mine | B64: and it can be simplified even further still by a one-time adjustment of +1/4 day to the molad epoch, which would forever eliminate all molad zakein adjustments.
A65: 7 | B65: 4 | C65: ="Tishrei Molad "&hYear&" on Tuesday and year non-leap?" -> Tishrei Molad 5782 on Tuesday and year non-leap? | E65: =AND(MoladWeekdayNum=3,NOT(isHebrewLeapYear(hYear))) -> FALSE
A66: 7 | B66: 4 | C66: Tuesday postponement cutoff time | E66: =9/24+204/25920 -> 0.3828703704 | F66: =" "&momenttodc(E66,5)&" = "&momenttodc(E66,6)&" = "&momenttodc(E66,9) -> 9 hours 11 minutes 6 parts = 9 hours 204 parts = 9924 parts
A67: 7 | B67: 4 | C67: Postpone Tuesday to Thursday? | E67: =AND(E65,E56>=E66) -> FALSE | F67: =IF(E67,"Postpone two days","") -> 
A68: mine | C68: ="Months Elapsed from Epoch to Tishrei "&hYear+1 -> Months Elapsed from Epoch to Tishrei 5783 | E68: =ElapsedMonths(hYear+1,7) -> 71514
A69: mine | C69: ="Molad of Tishrei for Hebrew year "&hYear+1 -> Molad of Tishrei for Hebrew year 5783 | E69: =TraditionalMolad(E68) -> 738424.1252
A70: mine | C70: Fractional Portion of Molad Moment (time) | E70: =MomentToTimeOfDay(E69) -> 0.1252314813 | F70: =" "&momenttoclock(E70,5)&" = "&momenttoclock(E70,6) -> 3 hours 6 parts = 3 hours 6 parts
A71: mine | C71: Molad Hebrew Date | E71: =FixedToHebrewString(E69) -> Yom Sheini, 1 Tishrei, 5783
A72: mine | C72: ="Tishrei Molad "&hYear+1&" on or after noon?" -> Tishrei Molad 5783 on or after noon? | E72: =E70>=0.75 -> FALSE | F72: =IF(AND(E65,E72),"Postpone two days","") -> 
A73: 7 | B73: 5 | C73: ="Tishrei Molad "&hYear&" on Monday and year "&hYear-1&" leap?" -> Tishrei Molad 5782 on Monday and year 5781 leap? | E73: =AND(MoladWeekdayNum=2,isHebrewLeapYear(hYear-1)) -> FALSE
A74: 7 | B74: 5 | C74: Monday postponement cutoff time | E74: =1/2+3/24+589/25920 -> 0.6477237654 | F74: =" "&momenttodc(E74,5)&" = "&momenttodc(E74,6)&" = "&momenttodc(E74,9) -> 15 hours 32 minutes 13 parts = 15 hours 589 parts = 16789 parts
A75: 7 | B75: 5 | C75: Postpone Monday to Tuesday? | E75: =AND(E73,E56>=E74) -> FALSE | F75: =IF(E75,"Postpone one day","") -> 
A76: mine | C76: ="Months Elapsed from Epoch to Tishrei "&hYear-1 -> Months Elapsed from Epoch to Tishrei 5781 | E76: =ElapsedMonths(hYear-1,7) -> 71489
A77: mine | C77: ="Molad of Tishrei for Hebrew year "&hYear-1 -> Molad of Tishrei for Hebrew year 5781 | E77: =TraditionalMolad(E76) -> 737685.8604
A78: mine | C78: Fractional Portion of Molad Moment (time) | E78: =MomentToTimeOfDay(E77) -> 0.8603780861 | F78: =" "&momenttoclock(E78,5)&" = "&momenttoclock(E78,6) -> 20 hours 38 minutes 17 parts = 20 hours 701 parts
A79: mine | C79: Molad Hebrew Date | E79: =FixedToHebrewString(E77) -> Yom Chamishi, 28 Elul, 5780
A80: mine | C80: ="Tishrei Molad "&hYear-1&" on or after noon?" -> Tishrei Molad 5781 on or after noon? | E80: =E78>=0.75 -> TRUE | F80: =IF(AND(E73,E80),"Postpone one day","") -> 
C81: Total Rosh HaShannah Postponement Days | D81: דְחִיות ראש השנה | E81: =IF(E59,1,0)+IF(E60,1,0)+IF(E61,1,0)+IF(AND(E65,E72),2,0)+IF(AND(E73,E80),1,0) -> 0
C82: ="Actual day of Rosh HaShannah "&hYear -> Actual day of Rosh HaShannah 5782 | E82: =INT(E55)+E81 -> 738040 | F82: =FixedToHebrewString(E82) -> Yom Shlishi, 1 Tishrei, 5782
A83: 8 | B83: 7 | C83: ="Length of Hebrew Year "&hYear -> Length of Hebrew Year 5782 | E83: =HebrewToFixed(hYear+1,7,1)-E82 -> 384 | F83: days
A84: 8 | B84: 7 | C84: ="Length Type of Hebrew Year "&hYear -> Length Type of Hebrew Year 5782 | E84: =IF(OR(hYearLength=353,hYearLength=383),"Deficient",IF(OR(hYearLength=355,hYearLength=385),"Perfect","Normal")) -> Normal | F84: Deficient = 353 or 383; Normal = 354 or 384; Perfect = 355 or 385
A85: 8 | B85: 6 | C85: ="Length of Cheshvan "&hYear -> Length of Cheshvan 5782 | E85: =IF(LengthType="Perfect",30,29) -> 29 | F85: days
A86: 8 | B86: 6 | C86: ="Length of Kislev "&hYear -> Length of Kislev 5782 | E86: =IF(LengthType="Deficient",29,30) -> 30 | F86: days
A88: 9 | C88: Tekufat Shmuel | D88: תְקוּפָת שמואל
C89: First Tekufat Nisan (epoch) | D89: תְקוּפָת ניסן | E89: =RMBM_TekufatShmuel(1,0) -> -1373257.0000 | F89: =" "&FixedToHebrewString(E89)&" at "&momenttoclock(E89,7)&" after mean sunset" -> Yom Rivii, 22 Adar, 1 at 0 hours after mean sunset
C90: Molad Nisan in year one | D90: מולד ניסן | E90: =TraditionalMolad(ElapsedMonths(1,1)) -> -1373249.6002 | F90: =" "&FixedToHebrewString(E90)&" at "&momenttoclock(E90,7)&" after mean sunset" -> Yom Rivii, 29 Adar, 1 at 9 hours 642 parts after mean sunset
C91: ="tekufah "&IF(E89<E90,"before","after")&" molad" -> tekufah before molad | E91: =ABS(E90-E89) -> 7.3998 | F91: =" "&momenttodc(E91,6) -> 7 days 9 hours 642 parts
A92: 9 | B92: 1 | C92: Assumed Length of Solar Year | E92: =365+1/4 -> 365.25 | F92: =" "&momenttodc(E92,5) -> 365 days 6 hours
A93: 9 | B93: 2 | C93: 19 solar years minus 235 lunar months | E93: =19*E92-235*MoladInterval -> 0.06037808642 | F93: =" "&momenttodc(E93,5)&" = "&momenttodc(E93,6)&" = "&momenttodc(E93,9) -> 1 hour 26 minutes 17 parts = 1 hour 485 parts = 1565 parts
A94: 9 | B94: 2 | C94: Season Length (=Solar Year / 4) | E94: =E92/4 -> 91.3125 | F94: =" "&momenttodc(E94,5) -> 91 days 7 hours 30 minutes
C95: ="Season remainder in excess of "&INT(E94)/7&" weeks" -> Season remainder in excess of 13 weeks | E95: =modulus(E94,7) -> 0.3125 | F95: =" "&momenttodc(E95,5) -> 7 hours 30 minutes
A96: 9 | B96: 4 | C96: solar year remainder in excess of 12 lunar months | E96: =E92-12*MoladInterval -> 10.8829 | F96: =" "&momenttodc(E96,6) -> 10 days 21 hours 204 parts
C98: autumn (180°) | D98: תְקוּפָת תשרי | E98: =RMBM_TekufatShmuel(hYear,180) -> 738070.6250 | F98: =" "&FixedToHebrewString(E98)&" at "&momenttoclock(E98,7)&" after mean sunset" -> Yom Chamishi, 1 Cheshvan, 5782 at 15 hours after mean sunset
D99: מולד תשרי | E99: =TraditionalMolad(ElapsedMonths(hYear,7)) -> 738040.2275
C100: ="tekufah "&IF(E98<E99,"before","after")&" molad" -> tekufah after molad | E100: =ABS(E99-E98) -> 30.3975 | F100: =" "&momenttodc(E100,6) -> 30 days 9 hours 583 parts
C101: winter (270°) | D101: תְקוּפָת טבת | E101: =RMBM_TekufatShmuel(hYear,270) -> 738161.9375 | F101: =" "&FixedToHebrewString(E101)&" at "&momenttoclock(E101,7)&" after mean sunset" -> Yom Chamishi, 4 Shevat, 5782 at 22 hours 540 parts after mean sunset
D102: מולד טבת | E102: =TraditionalMolad(ElapsedMonths(hYear,10)) -> 738128.8193
C103: ="tekufah "&IF(E101<E102,"before","after")&" molad" -> tekufah after molad | E103: =ABS(E102-E101) -> 33.1182 | F103: =" "&momenttodc(E103,6) -> 33 days 2 hours 904 parts
C104: spring (0°) | D104: תְקוּפָת ניסן | E104: =RMBM_TekufatShmuel(hYear,0) -> 738253.2500 | F104: =" "&FixedToHebrewString(E104)&" at "&momenttoclock(E104,7)&" after mean sunset" -> Yom Shishi, 7 Nisan, 5782 at 6 hours after mean sunset
D105: מולד ניסן | E105: =TraditionalMolad(ElapsedMonths(hYear,1)) -> 738246.9417
C106: ="tekufah "&IF(E104<E105,"before","after")&" molad" -> tekufah after molad | E106: =ABS(E105-E104) -> 6.3083 | F106: =" "&momenttodc(E106,6) -> 6 days 7 hours 432 parts
C107: summer (90°) | D107: תְקוּפָת תמוז | E107: =RMBM_TekufatShmuel(hYear,90) -> 738344.5625 | F107: =" "&FixedToHebrewString(E107)&" at "&momenttoclock(E107,7)&" after mean sunset" -> Yom Shishi, 9 Tammuz, 5782 at 13 hours 540 parts after mean sunset
D108: מולד תמוז | E108: =TraditionalMolad(ElapsedMonths(hYear,4)) -> 738335.5334
C109: ="tekufah "&IF(E107<E108,"before","after")&" molad" -> tekufah after molad | E109: =ABS(E108-E107) -> 9.0291 | F109: =" "&momenttodc(E109,6) -> 9 days 0 hours 753 parts
A111: 10 | C111: Tekufat Rav Adda | D111: תְקוּפָת רַב אדא | F111: each part = chelek = minute / 18 or hour / 1080, each moment = regah = chelek / 76
A112: 10 | B112: 1 | C112: Assumed Length of Solar Year | E112: =MoladInterval*235/19 -> 365.246822206 | F112: =" "&momenttodc(E112,5) -> 365 days 5 hours 55 minutes 7 parts 48 moments
A113: 10 | B113: 2 | C113: Season Length (=Solar Year / 4) | E113: =E112/4 -> 91.3117055515 | F113: =" "&momenttodc(E113,5) -> 91 days 7 hours 28 minutes 15 parts 31 moments
C114: ="Season remainder in excess of "&INT(E113)/7&" weeks" -> Season remainder in excess of 13 weeks | E114: =modulus(E113,7) -> 0.3117 | F114: =" "&momenttodc(E114,5) -> 7 hours 28 minutes 15 parts 31 moments
C116: autumn (180°) | D116: תְקוּפָת תשרי | E116: =RMBM_TekufatAdda(hYear,180) -> 738059.255762 | F116: =" "&FixedToHebrewString(E116)&" at "&momenttoclock(E116,7)&" after mean sunset" -> Yom Rishon, 20 Tishrei, 5782 at 6 hours 149 parts 26 moments after mean sunset
C117: winter (270°) | D117: תְקוּפָת טבת | E117: =RMBM_TekufatAdda(hYear,270) -> 738150.567467 | F117: =" "&FixedToHebrewString(E117)&" at "&momenttoclock(E117,7)&" after mean sunset" -> Yom Rishon, 22 Tevet, 5782 at 13 hours 668 parts 57 moments after mean sunset
C118: spring (0°) | D118: תְקוּפָת ניסן | E118: =RMBM_TekufatAdda(hYear,0) -> 738241.879173 | F118: =" "&FixedToHebrewString(E118)&" at "&momenttoclock(E118,7)&" after mean sunset" -> Yom Rishon, 24 Adar Sheini, 5782 at 21 hours 108 parts 12 moments after mean sunset
C119: summer (90°) | D119: תְקוּפָת תמוז | E119: =RMBM_TekufatAdda(hYear,90) -> 738333.190878 | F119: =" "&FixedToHebrewString(E119)&" at "&momenttoclock(E119,7)&" after mean sunset" -> Yom Sheini, 28 Sivan, 5782 at 4 hours 627 parts 43 moments after mean sunset
A121: 12 | C121: Solar Position | D121: מָקוֹם הַשֶׁמֶשׁ
C122: Solar Longitude at Rambam Epoch | D122: מָקוֹם הַשֶׁמֶשׁ בְּעִקָר | E122: =DMStoDegrees(7,3,32) -> 7.058888889 | F122: =DegreesToDMS(E122) -> 7° 3' 32" | G122: =RMBM_DegreesInConstellation(RoundArcSeconds(E122)) -> Aries 7° 3' 32"
A123: 12 | B123: 1 | C123: Solar Mean Motion per Day | D123: מַהֲלָך אֶמצַע הַשֶׁמֶשׁ יוֹמִי | E123: =(RMBM_SolarMeanLongitude(RMBMepoch+100)-RMBM_SolarMeanLongitude(RMBMepoch))/100 -> 0.9856472222 | F123: =DegreesToDMSTF(E123) -> 0° 59' 8" 19"' 48"" | G123: based on 100 days
C124: 10 | E124: =C124*SolarMotionPerDay -> 9.856472222 | F124: =DegreesToDMSTF(E124) -> 9° 51' 23" 18"'
C125: 29 | E125: 28.58376944 | F125: =DegreesToDMST(E125) -> 28° 35' 1" 34"'
C126: 100 | E126: 98.56472222 | F126: =DegreesToDMS(E126) -> 98° 33' 53"
C127: 354 | E127: 348.9191167 | F127: =DegreesToDMS(E127) -> 348° 55' 9"
C128: 1000 | E128: 985.6472222 | F128: =DegreesToDMS(E128) -> 265° 38' 50"
C129: 10000 | E129: 9856.472222 | F129: =DegreesToDMS(E129) -> 136° 28' 20"
C130: Solar Mean Ecliptic Longitude | D130: מָקוֹם אֶמצַע הַשֶׁמֶשׁ | E130: =RMBM_SolarMeanLongitude(moment) -> 167.2875836 | F130: =DegreesToDMS(E130) -> 167° 17' 15" | G130: =RMBM_DegreesInConstellation(RoundArcSeconds(E130)) -> Virgo 17° 17' 15"
C132: Aphelion at Rambam Epoch | D132: מָקוֹם גוֹבַה הַשֶׁמֶשׁ בְּעִקָר | E132: =DMStoDegrees(86,45,8) -> 86.75222222 | F132: =DegreesToDMS(E132) -> 86° 45' 8" | G132: =RMBM_DegreesInConstellation(RoundArcSeconds(E132)) -> Gemini 26° 45' 8"
A133: 12 | B133: 2 | C133: Aphelion Mean Motion per Day | D133: מַהֲלָך גוֹבַה הַשֶׁמֶשׁ יוֹמִי | E133: =(RMBM_ApogeeLongitude(RMBMepoch+100)-RMBM_ApogeeLongitude(RMBMepoch))/100 -> 0.000041667 | F133: =DegreesToDMSTF(E133) -> 0° 0' 0" 9"' | G133: based on motion in 10 days
C134: 10 | E134: =C134*AphelionPerDay -> 0.0004166666667 | F134: =DegreesToDMSTF(E134) -> 0° 0' 1" 30"'
C135: 29 | E135: 0.001208333333 | F135: =DegreesToDMST(E135) -> 0° 0' 4" 21"'
C136: 100 | E136: 0.004166666667 | F136: =DegreesToDMS(E136) -> 0° 0' 15"
C137: 354 | E137: 0.01475 | F137: =DegreesToDMS(E137) -> 0° 0' 53"
C138: 1000 | E138: 0.04166666667 | F138: =DegreesToDMS(E138) -> 0° 2' 30"
C139: 10000 | E139: 0.4166666667 | F139: =DegreesToDMS(E139) -> 0° 25'
C140: Aphelion Ecliptic Longitude | D140: מָקוֹם גוֹבַה הַשֶׁמֶשׁ | E140: =RMBM_ApogeeLongitude(moment) -> 99.58812934 | F140: =DegreesToDMS(E140) -> 99° 35' 17"
A142: 13 | B142: 1 | C142: Solar Mean Course | D142: מַסלוּל הַשֶׁמֶשׁ | E142: =modulus(SolarMeanLongitude-AphelionLongitude, 360) -> 67.69945428 | F142: =DegreesToDMS(E142) -> 67° 41' 58" | G142: (Solar Mean Longitude - Aphelion Longitude) MOD 360
A143: 13 | B143: 4 | C143: Solar Longitude Adjust | D143: מְנָת מַסלוּל הַשֶׁמֶשׁ | E143: =RMBM_SolarLongitudeAdjust(SolarMeanCourse) -> 1.811657571 | F143: =DegreesToDMS(E143) -> 1° 48' 42" | G143: Subtract from Solar Mean Longitude = Solar True Longitude
C144: Solar True Ecliptic Longitude | D144: מָקוֹם הַשֶׁמֶשׁ הַאֲמִתִי | E144: =RMBM_SolarTrueLongitude(moment) -> 165.4759261 | F144: =DegreesToDMS(E144) -> 165° 28' 33" | G144: =RMBM_DegreesInConstellation(RoundArcMinutes(E144)) -> Virgo 15° 29'
A146: 13 | B146: 11 | C146: Tekufat Rambam (based on an iterative converging binary search using Rambam's true solar longitude method from chapters 12 and 13)
C147: The following moladot are merely employed as approximate starting points for equinox or solstice searching, known to be <1 year before target.
C148: molad for Nisan of Previous Year | E148: =TraditionalMolad(ElapsedMonths(hYear-1,1)) -> 737863.043943 | F148: =" "&FixedToHebrewString(E148)&" at "&momenttoclock(E148,6)&" after mean sunset" -> Yom Rishon, 1 Nisan, 5781 at 1 hour 59 parts after mean sunset
C149: molad for Tishrei of Target Year | E149: =TraditionalMolad(ElapsedMonths(hYear,7)) -> 738040.227508 | F149: =" "&FixedToHebrewString(E149)&" at "&momenttoclock(E149,6)&" after mean sunset" -> Yom Shlishi, 1 Tishrei, 5782 at 5 hours 497 parts after mean sunset
C150: Assumed Length of Mean Solar Year | E150: =360/E123 -> 365.242240716 | F150: =" "&momenttodc(E150,13) -> 365 days 5h 48m 49.6s
C152: autumn (180°) | D152: תְקוּפָת תשרי | E152: =RMBM_SolarLongitudeAfter(MoladNisanPreviousYear,180) -> 738055.654772 | F152: =" "&FixedToHebrewString(E152)&" at "&momenttoclock(E152,1)&" after mean sunset" -> Yom Rivii, 16 Tishrei, 5782 at 15h 42m 52s after mean sunset
C153: winter (270°) | D153: תְקוּפָת טבת | E153: =RMBM_SolarLongitudeAfter(MoladNisanPreviousYear,270) -> 738145.308033 | F153: =" "&FixedToHebrewString(E153)&" at "&momenttoclock(E153,1)&" after mean sunset" -> Yom Shlishi, 17 Tevet, 5782 at 7h 23m 34s after mean sunset
C154: spring (0°) | D154: תְקוּפָת ניסן | E154: =RMBM_SolarLongitudeAfter(MoladTishreiTargetYear,0) -> 738234.307285 | F154: =" "&FixedToHebrewString(E154)&" at "&momenttoclock(E154,1)&" after mean sunset" -> Yom Rishon, 17 Adar Sheini, 5782 at 7h 22m 29s after mean sunset
C155: summer (90°) | D155: תְקוּפָת תמוז | E155: =RMBM_SolarLongitudeAfter(MoladTishreiTargetYear,90) -> 738327.264188 | F155: =" "&FixedToHebrewString(E155)&" at "&momenttoclock(E155,1)&" after mean sunset" -> Yom Shlishi, 22 Sivan, 5782 at 6h 20m 26s after mean sunset
A157: 14 | C157: Lunar Position | D157: מָקוֹם הַיָרֵחַ
A158: 14 | B158: 4 | C158: Lunar Mean Longitude at Rambam Epoch | D158: מָקוֹם אֶמצַע הַיָרֵחַ בְּעִקָר | E158: =DMStoDegrees(31,14,43) -> 31.24527778 | F158: =DegreesToDMS(E158) -> 31° 14' 43" | G158: =RMBM_DegreesInConstellation(RoundArcSeconds(E158)) -> Taurus 1° 14' 43"
A159: 14 | B159: 2 | C159: Lunar Mean Motion per Day | D159: מַהֲלָך אֶמצַע הַיָרֵחַ יוֹמִי | E159: 13.17639722 | F159: =DegreesToDMSTF(E159) -> 13° 10' 35" 1"' 48"" | G159: based on 100 days
C160: 10 | E160: =C160*LunarMeanPerDay -> 131.7639722 | F160: =DegreesToDMSTF(E160) -> 131° 45' 50" 18"'
C161: 29 | E161: 382.1155194 | F161: =DegreesToDMST(E161) -> 22° 6' 55" 52"'
C162: 100 | E162: 1317.639722 | F162: =DegreesToDMS(E162) -> 237° 38' 23"
C163: 354 | E163: 4664.444617 | F163: 344° 26' 41"
C164: 1000 | E164: 13176.39722 | F164: 216° 23' 50"
C165: 10000 | E165: 131763.9722 | F165: 3° 58' 20"
A166: 14 | B166: 5 | C166: Lunar Position Adjustment | E166: =LunarMeanLongitude-modulus(E158+LunarMeanPerDay*(moment-RMBMepoch),360) -> 6.519258022e-09 | F166: 0°
A167: 14 | B167: 6 | C167: Lunar Mean Ecliptic Longitude | D167: מָקוֹם אֶמצַע הַיָרֵחַ | E167: =RMBM_LunarMeanLongitude(moment) -> 175.506759 | F167: 175° 30' 24" | G167: =RMBM_DegreesInConstellation(RoundArcSeconds(E167)) -> Virgo 25° 30' 24"
C168: Lunar Mean Elongation | D168: מֶרְחָק הַיָרֵחַ | E168: =modulus(LunarMeanLongitude-SolarMeanLongitude,360) -> 8.219175347 | F168: =DegreesToDMS(E168) -> 8° 13' 9" | G168: Always a small positive number on the eve of first lunar crescent sighting.
A169: 15 | B169: 1 | C169: Double Elongation | D169: מֶרְחָק הַכָּפוּל | E169: =2*LunarMeanElongation -> 16.43835069 | F169: =DegreesToDMS(E169) -> 16° 26' 18"
A171: 14 | B171: 4 | C171: Path Mean Longitude at Rambam Epoch | D171: מָקוֹם אֶמצַע הַמַסלוּל בְּעִקָר | E171: =DMStoDegrees(84,28,42) -> 84.47833333 | F171: =DegreesToDMS(E171) -> 84° 28' 42"
A172: 14 | B172: 3 | C172: Lunar Path Mean Motion per Day | D172: מַהֲלָך אֶמצַע הַמַסלוּל יוֹמִי | E172: =DMStoDegrees(13,3,53,55,48) -> 13.06498056 | F172: =DegreesToDMSTF(E172) -> 13° 3' 53" 55"' 48"" | G172: based on 100 days
C173: 10 | E173: =C173*LunarPathMeanPerDay -> 130.6498056 | F173: =DegreesToDMSTF(E173) -> 130° 38' 59" 18"'
C174: 29 | E174: 378.8844361 | F174: =DegreesToDMST(E174) -> 18° 53' 3" 58"'
C175: 100 | E175: 1306.498056 | F175: =DegreesToDMS(E175) -> 226° 29' 53"
C176: 354 | E176: 4625.003117 | F176: 305° 0' 11"
C177: 1000 | E177: 13064.98056 | F177: 104° 58' 50"
C178: 10000 | E178: 130649.8056 | F178: 329° 48' 20"
A179: 14 | B179: 3 | C179: Lunar Path Mean Longitude | D179: מָקוֹם אֶמצַע הַמַסלוּל | E179: =RMBM_LunarPathMeanLongitude(moment) -> 105.5241808 | F179: =DegreesToDMS(E179) -> 105° 31' 27"
A180: 15 | B180: 3 | C180: Amount to Add to Path Mean | E180: =RMBM_AddToMeanPath(DoubleElongation) -> 2 | F180: 2° | G180: Based on double elongation to double its resolution
A181: 15 | B181: 3 end | C181: Correct Course | D181: מַסלוּל הַנָכוֹן | E181: =modulus(LunarPathMeanLongitude+AddToPathMean,360) -> 107.5241808 | F181: 107° 31' 27"
A182: 15 | B182: 5-6 | C182: Lunar Angle of Course | D182: מְנָת מַסלוּל הַיָרֵחַ | E182: =RMBM_LunarAngleOfCourse(CorrectCourse) -> -5.020470621 | F182: -(5° 1' 14")
C183: Lunar True Ecliptic Longitude | D183: מָקוֹם הַיָרֵחַ הַאֲמִתִי | E183: =LunarMeanLongitude+LunarAngleOfCourse -> 170.4862883 | F183: =DegreesToDM(E183) -> 170° 29' | G183: =RMBM_DegreesInConstellation(RoundArcMinutes(E183)) -> Virgo 20° 29'
A185: 16 | C185: Ascending & Descending Lunar Orbital Nodes | D185: הַראשׁ וְהַזָנָב
A186: 16 | B186: end 2 | C186: Lunar Rosh Longitude at Rambam Epoch | D186: (מָקוֹם הַראשׁ בְּעִקָר (מִזְרָחָה | E186: =DMStoDegrees(180,57,28) -> 180.9577778 | F186: =DegreesToDMS(E186) -> 180° 57' 28" | G186: =RMBM_DegreesInConstellation(RoundArcSeconds(E186))&" (epoch position east of equinox)" -> Libra 0° 57' 28" (epoch position east of equinox)
A187: 16 | B187: end 5 | C187: 360° - above because motion east to west | D187: (מָקוֹם הַראשׁ בְּעִקָר (מערבה | E187: =360-E186 -> 179.0422222 | F187: =DegreesToDMS(E187) -> 179° 2' 32" | G187: =RMBM_DegreesInConstellation(RoundArcSeconds(E187))&" (epoch position west of equinox)" -> Virgo 29° 2' 32" (epoch position west of equinox)
A188: 16 | B188: 2 | C188: Lunar Ascending Node Motion per Day | D188: מַהֲלָך הַראשׁ יוֹמִי | E188: =(RMBM_LunarRoshLongitude(RMBMepoch)-RMBM_LunarRoshLongitude(RMBMepoch+100))/100 -> 0.05295277778 | F188: =DegreesToDMSTF(E188) -> 0° 3' 10" 37"' 48"" | G188: east to west (retrograde, opposite to direction of lunar orbital motion)
C189: 10 | E189: =C189*RoshPerDay -> 0.5295277778 | F189: =DegreesToDMSTF(E189) -> 0° 31' 46" 18"'
C190: 29 | E190: =C190*RoshPerDay -> 1.535630556 | F190: =DegreesToDMST(E190) -> 1° 32' 8" 16"'
C191: 100 | E191: =C191*RoshPerDay -> 5.295277778 | F191: =DegreesToDMS(E191) -> 5° 17' 43"
C192: 354 | E192: =C192*RoshPerDay -> 18.74528333 | F192: 18° 44' 43"
C193: 1000 | E193: 52.95277778 | F193: 52° 57' 10"
C194: 10000 | E194: 529.5277778 | F194: 169° 31' 40"
A195: 16 | B195: 3 | C195: Motion per Day times Elapsed Days | E195: =RoshPerDay*ElapsedDays -> 16312.72649 | F195: 112° 43' 35"
A196: 16 | B196: 3 | C196: Add position of ascending node at Rambam epoch | D196: תוסיף מָקוֹם הַראשׁ (מִזְרָחָה) | E196: =modulus(E195+E186,360) -> 293.6842705 | F196: 293° 41' 3" | G196: MOD 360°
A197: 16 | B197: 3 | C197: Take from 360° = Longitude of ascending node | D197: (מָקוֹם הַראשׁ (מערבה | E197: =360-E196 -> 66.31572946 | F197: 66° 18' 57" | G197: =RMBM_DegreesInConstellation(RoundArcMinutes(E197)) -> Gemini 6° 19'
A198: mine | C198: Simpler: epoch west minus total motion, MOD 360° | D198: (מָקוֹם הַראשׁ (מערבה | E198: =modulus(E187-E195,360) -> 66.31572946 | F198: =DegreesToDMS(E198) -> 66° 18' 57" | G198: =RMBM_DegreesInConstellation(RoundArcMinutes(E198)) -> Gemini 6° 19'
A199: 16 | B199: 6 | C199: Longitude of descending node (= ascending+180°) | D199: מָקוֹם הַזָנָב | E199: =modulus(LunarAscNodeLongitude+180,360) -> 246.3157295 | F199: 246° 18' 57" | G199: =RMBM_DegreesInConstellation(RoundArcMinutes(E199)) -> Sagittarius 6° 19'
A201: 16 | B201: 10 | C201: Course of Lunar Latitude | D201: מַסלוּל הַרוֹחַב | E201: =modulus(LunarTrueLongitude-LunarAscNodeLongitude,360) -> 104.1705589 | F201: =DegreesToDM(E201) -> 104° 10' | G201: (Lunar True Longitude - Lunar Rosh Longitude) MOD 360
C202: Course converted to 0-90° range | E202: =IF(CourseLunarLat>270,360-CourseLunarLat,IF(CourseLunarLat>180,CourseLunarLat-180,IF(CourseLunarLat>90,180-CourseLunarLat))) -> 75.82944111 | F202: 75° 50' | G202: 0-90° range to match the text, but not used further herein
A203: 16 | B203: 11-18 | C203: Table entry above course | D203: =CEILING(E202/10,1)*10 -> 80 | E203: =VLOOKUP(D203,'Lunar Latitude'!A1:D38,4,TRUE) -> 4.916666667 | F203: 4° 55'
C204: Table entry below course | D204: =INT(E202/10)*10 -> 70 | E204: =VLOOKUP(D204,'Lunar Latitude'!A1:D38,4,TRUE) -> 4.7 | F204: 4° 42'
A205: 16 | B205: 11-18 | C205: Table entry above course | D205: =CEILING(CourseLunarLat/10,1)*10 -> 110 | E205: =VLOOKUP(D205,'Lunar Latitude'!A1:D38,4,TRUE) -> 4.7 | F205: =DegreesToDM(E205) -> 4° 42'
C206: Table entry below course | D206: =INT(CourseLunarLat/10)*10 -> 100 | E206: =VLOOKUP(D206,'Lunar Latitude'!A1:D38,4,TRUE) -> 4.916666667 | F206: 4° 55' | G206: positive = north, negative = south of the ecliptic
C207: Difference | D207: =D205-D206 -> 10 | E207: =E205-E206 -> -0.2166666667 | F207: -(0° 13')
C208: Average change per degree from Ascending Node | D208: 1 | E208: =(E205-E206)/D207 -> -0.02166666667 | F208: =DegreesToDMS(E208) -> -(0° 1' 18")
C209: Degrees beyond table entry below course | E209: =E201-D206 -> 4.170558893 | F209: =DegreesToDM(E209) -> 4° 10'
A210: 16 | B210: 12-15 | C210: Amount to add to table entry below course | D210: מְנָת הַמַסלוּל הַרוֹחַב | E210: =E209*E208 -> -0.09036210935 | F210: -(0° 5')
C211: Lunar Latitude (linear interpolation) | D211: רוֹחַב הַיָרֵחַ | E211: =E206+E210 -> 4.826304557 | F211: =DegreesToDM(ABS(E211))&IF(E211<0," South"," North") -> 4° 50' North | G211: use sine interpolation (below) instead of this linear interpolation
A212: mine | C212: Lunar Latitude (sine interpolation) | D212: רוֹחַב הַיָרֵחַ | E212: =5*SIN(RADIANS(E201)) -> 4.847856358 | F212: =DegreesToDM(ABS(E212))&IF(E212<0," South"," North") -> 4° 51' North
A214: 17 | C214: Visibility of the First Lunar Crescent | D214: תצפיות של הירח
A215: =A$214 -> 17 | B215: 1 | C215: First Longitude (Moon - Sun along the ecliptic) | D215: אוֹרֶך רִאשׁוֹן | E215: =modulus(LunarTrueLongitude-SolarTrueLongitude,360) -> 5.010362298 | F215: =DegreesToDM(E215) -> 5° 1' | G215: On the eve of first lunar crescent sighting Moon is always <60° east of Sun
C216: Within First Quarter | E216: =FirstLongitude<=90 -> TRUE | G216: suppress crescent visibility prediction if beyond first quarter
A217: =A$214 -> 17 | B217: 2 | C217: First Latitude (=Lunar Ecliptic Latitude) | D217: רוֹחַב רִאשׁוֹן | E217: =LunarLatitude -> 4.847856358 | F217: =DegreesToDM(ABS(E217))&IF(E217<0," South"," North") -> 4° 51' North
A218: =A$214 -> 17 | B218: 4 | C218: Lunar True Longitude Capricorn to Gemini? | E218: =OR(LunarTrueLongitude>=270,LunarTrueLongitude<90) -> FALSE
A219: 17 | B219: 3 | C219: TRUE: First check (First Longitude 9-15°) | D219: winter and spring | E219: =IF(CapricornToGemini,IF(FirstLongitude>90,"Beyond first quarter",IF(FirstLongitude<=9,"Impossible to see crescent",IF(FirstLongitude>15,"Crescent will be visible","Crescent might be visible"))&" in Israel"),"not applicable") -> not applicable | G219: Capricorn (G'di) = 270°, Gemini (T'omim) ends at 90°
A220: 17 | B220: 4 | C220: FALSE: First check (First Longitude 10-24°) | D220: summer and autumn | E220: =IF(NOT(CapricornToGemini),IF(FirstLongitude>90,"Beyond first quarter",IF(FirstLongitude<=10,"Impossible to see Moon",IF(FirstLongitude>24,"Crescent will be visible","Crescent might be visible"))&" in Israel"),"not applicable") -> Impossible to see Moon in Israel | G220: Cancer (Sartan) = 90°, Sagittarius (Keshet) ends at 270°
... 27 more rows

Sheet Zodiac Start Mid
A1: Longitude | B1: Classic | C1: Hebrew | D1: English
A2: 0 | B2: =DegreesInConstellationClassic($A2) -> Aries 0° | C2: =DegreesInConstellationHebrew($A2) -> Taleh 0° | D2: =DegreesInConstellationEnglish($A2) -> Lamb 0°
A3: =A2+15 -> 15 | B3: Aries 15° | C3: Taleh 15° | D3: Lamb 15°
A4: 30 | B4: Taurus 0° | C4: Shor 0° | D4: Bull 0°
A5: 45 | B5: Taurus 15° | C5: Shor 15° | D5: Bull 15°
A6: 60 | B6: Gemini 0° | C6: T'omim 0° | D6: Twins 0°
A7: 75 | B7: Gemini 15° | C7: T'omim 15° | D7: Twins 15°
A8: 90 | B8: Cancer 0° | C8: Sartan 0° | D8: Crab 0°
A9: 105 | B9: Cancer 15° | C9: Sartan 15° | D9: Crab 15°
A10: 120 | B10: Leo 0° | C10: Aryeh 0° | D10: Lion 0°
A11: 135 | B11: Leo 15° | C11: Aryeh 15° | D11: Lion 15°
A12: 150 | B12: Virgo 0° | C12: Betulah 0° | D12: Virgin 0°
A13: 165 | B13: Virgo 15° | C13: Betulah 15° | D13: Virgin 15°
A14: 180 | B14: Libra 0° | C14: Moznaim 0° | D14: Scales 0°
A15: 195 | B15: Libra 15° | C15: Moznaim 15° | D15: Scales 15°
A16: 210 | B16: Scorpio 0° | C16: Akrav 0° | D16: Scorpion 0°
A17: 225 | B17: Scorpio 15° | C17: Akrav 15° | D17: Scorpion 15°
A18: 240 | B18: Sagittarius 0° | C18: Keshet 0° | D18: Bow 0°
A19: 255 | B19: Sagittarius 15° | C19: Keshet 15° | D19: Bow 15°
A20: 270 | B20: Capricorn 0° | C20: G'di 0° | D20: Kid 0°
A21: 285 | B21: Capricorn 15° | C21: G'di 15° | D21: Kid 15°
A22: 300 | B22: Aquarius 0° | C22: D'li 0° | D22: Water Bucket 0°
A23: 315 | B23: Aquarius 15° | C23: D'li 15° | D23: Water Bucket 15°
A24: 330 | B24: Pisces 0° | C24: Dagim 0° | D24: Fish 0°
A25: 345 | B25: Pisces 15° | C25: Dagim 15° | D25: Fish 15°

Sheet Zodiac Each Degree
A1: Longitude | B1: Classic | C1: Hebrew | D1: English | E1: Longitude | F1: Classic | G1: Hebrew | H1: English
A2: 0 | B2: =DegreesInConstellationClassic($A2) -> Aries 0° | C2: =DegreesInConstellationHebrew($A2) -> Taleh 0° | D2: =DegreesInConstellationEnglish($A2) -> Lamb 0° | E2: =A181+1 -> 180 | F2: =DegreesInConstellationClassic($E2) -> Libra 0° | G2: =DegreesInConstellationHebrew($E2) -> Moznaim 0° | H2: =DegreesInConstellationEnglish($E2) -> Scales 0°
A3: =A2+1 -> 1 | B3: =DegreesInConstellationClassic($A3) -> Aries 1° | C3: =DegreesInConstellationHebrew($A3) -> Taleh 1° | D3: =DegreesInConstellationEnglish($A3) -> Lamb 1° | E3: =E2+1 -> 181 | F3: Libra 1° | G3: Moznaim 1° | H3: Scales 1°
A4: 2 | B4: Aries 2° | C4: Taleh 2° | D4: Lamb 2° | E4: 182 | F4: Libra 2° | G4: Moznaim 2° | H4: Scales 2°
A5: 3 | B5: Aries 3° | C5: Taleh 3° | D5: Lamb 3° | E5: 183 | F5: Libra 3° | G5: Moznaim 3° | H5: Scales 3°
A6: 4 | B6: Aries 4° | C6: Taleh 4° | D6: Lamb 4° | E6: 184 | F6: Libra 4° | G6: Moznaim 4° | H6: Scales 4°
A7: 5 | B7: Aries 5° | C7: Taleh 5° | D7: Lamb 5° | E7: 185 | F7: Libra 5° | G7: Moznaim 5° | H7: Scales 5°
A8: 6 | B8: Aries 6° | C8: Taleh 6° | D8: Lamb 6° | E8: 186 | F8: Libra 6° | G8: Moznaim 6° | H8: Scales 6°
A9: 7 | B9: Aries 7° | C9: Taleh 7° | D9: Lamb 7° | E9: 187 | F9: Libra 7° | G9: Moznaim 7° | H9: Scales 7°
A10: 8 | B10: Aries 8° | C10: Taleh 8° | D10: Lamb 8° | E10: 188 | F10: Libra 8° | G10: Moznaim 8° | H10: Scales 8°
A11: 9 | B11: Aries 9° | C11: Taleh 9° | D11: Lamb 9° | E11: 189 | F11: Libra 9° | G11: Moznaim 9° | H11: Scales 9°
A12: 10 | B12: Aries 10° | C12: Taleh 10° | D12: Lamb 10° | E12: 190 | F12: Libra 10° | G12: Moznaim 10° | H12: Scales 10°
A13: 11 | B13: Aries 11° | C13: Taleh 11° | D13: Lamb 11° | E13: 191 | F13: Libra 11° | G13: Moznaim 11° | H13: Scales 11°
A14: 12 | B14: Aries 12° | C14: Taleh 12° | D14: Lamb 12° | E14: 192 | F14: Libra 12° | G14: Moznaim 12° | H14: Scales 12°
A15: 13 | B15: Aries 13° | C15: Taleh 13° | D15: Lamb 13° | E15: 193 | F15: Libra 13° | G15: Moznaim 13° | H15: Scales 13°
A16: 14 | B16: Aries 14° | C16: Taleh 14° | D16: Lamb 14° | E16: 194 | F16: Libra 14° | G16: Moznaim 14° | H16: Scales 14°
A17: 15 | B17: Aries 15° | C17: Taleh 15° | D17: Lamb 15° | E17: 195 | F17: Libra 15° | G17: Moznaim 15° | H17: Scales 15°
A18: 16 | B18: Aries 16° | C18: Taleh 16° | D18: Lamb 16° | E18: 196 | F18: Libra 16° | G18: Moznaim 16° | H18: Scales 16°
A19: 17 | B19: Aries 17° | C19: Taleh 17° | D19: Lamb 17° | E19: 197 | F19: Libra 17° | G19: Moznaim 17° | H19: Scales 17°
A20: 18 | B20: Aries 18° | C20: Taleh 18° | D20: Lamb 18° | E20: 198 | F20: Libra 18° | G20: Moznaim 18° | H20: Scales 18°
A21: 19 | B21: Aries 19° | C21: Taleh 19° | D21: Lamb 19° | E21: 199 | F21: Libra 19° | G21: Moznaim 19° | H21: Scales 19°
A22: 20 | B22: Aries 20° | C22: Taleh 20° | D22: Lamb 20° | E22: 200 | F22: Libra 20° | G22: Moznaim 20° | H22: Scales 20°
A23: 21 | B23: Aries 21° | C23: Taleh 21° | D23: Lamb 21° | E23: 201 | F23: Libra 21° | G23: Moznaim 21° | H23: Scales 21°
A24: 22 | B24: Aries 22° | C24: Taleh 22° | D24: Lamb 22° | E24: 202 | F24: Libra 22° | G24: Moznaim 22° | H24: Scales 22°
A25: 23 | B25: Aries 23° | C25: Taleh 23° | D25: Lamb 23° | E25: 203 | F25: Libra 23° | G25: Moznaim 23° | H25: Scales 23°
A26: 24 | B26: Aries 24° | C26: Taleh 24° | D26: Lamb 24° | E26: 204 | F26: Libra 24° | G26: Moznaim 24° | H26: Scales 24°
A27: 25 | B27: Aries 25° | C27: Taleh 25° | D27: Lamb 25° | E27: 205 | F27: Libra 25° | G27: Moznaim 25° | H27: Scales 25°
A28: 26 | B28: Aries 26° | C28: Taleh 26° | D28: Lamb 26° | E28: 206 | F28: Libra 26° | G28: Moznaim 26° | H28: Scales 26°
A29: 27 | B29: Aries 27° | C29: Taleh 27° | D29: Lamb 27° | E29: 207 | F29: Libra 27° | G29: Moznaim 27° | H29: Scales 27°
A30: 28 | B30: Aries 28° | C30: Taleh 28° | D30: Lamb 28° | E30: 208 | F30: Libra 28° | G30: Moznaim 28° | H30: Scales 28°
A31: 29 | B31: Aries 29° | C31: Taleh 29° | D31: Lamb 29° | E31: 209 | F31: Libra 29° | G31: Moznaim 29° | H31: Scales 29°
A32: 30 | B32: Taurus 0° | C32: Shor 0° | D32: Bull 0° | E32: 210 | F32: Scorpio 0° | G32: Akrav 0° | H32: Scorpion 0°
A33: 31 | B33: Taurus 1° | C33: Shor 1° | D33: Bull 1° | E33: 211 | F33: Scorpio 1° | G33: Akrav 1° | H33: Scorpion 1°
A34: 32 | B34: =DegreesInConstellationClassic($A34) -> Taurus 2° | C34: =DegreesInConstellationHebrew($A34) -> Shor 2° | D34: =DegreesInConstellationEnglish($A34) -> Bull 2° | E34: 212 | F34: =DegreesInConstellationClassic($E34) -> Scorpio 2° | G34: =DegreesInConstellationHebrew($E34) -> Akrav 2° | H34: =DegreesInConstellationEnglish($E34) -> Scorpion 2°
A35: =A34+1 -> 33 | B35: Taurus 3° | C35: Shor 3° | D35: Bull 3° | E35: =E34+1 -> 213 | F35: Scorpio 3° | G35: Akrav 3° | H35: Scorpion 3°
A36: 34 | B36: Taurus 4° | C36: Shor 4° | D36: Bull 4° | E36: 214 | F36: Scorpio 4° | G36: Akrav 4° | H36: Scorpion 4°
A37: 35 | B37: Taurus 5° | C37: Shor 5° | D37: Bull 5° | E37: 215 | F37: Scorpio 5° | G37: Akrav 5° | H37: Scorpion 5°
A38: 36 | B38: Taurus 6° | C38: Shor 6° | D38: Bull 6° | E38: 216 | F38: Scorpio 6° | G38: Akrav 6° | H38: Scorpion 6°
A39: 37 | B39: Taurus 7° | C39: Shor 7° | D39: Bull 7° | E39: 217 | F39: Scorpio 7° | G39: Akrav 7° | H39: Scorpion 7°
A40: 38 | B40: Taurus 8° | C40: Shor 8° | D40: Bull 8° | E40: 218 | F40: Scorpio 8° | G40: Akrav 8° | H40: Scorpion 8°
A41: 39 | B41: Taurus 9° | C41: Shor 9° | D41: Bull 9° | E41: 219 | F41: Scorpio 9° | G41: Akrav 9° | H41: Scorpion 9°
A42: 40 | B42: Taurus 10° | C42: Shor 10° | D42: Bull 10° | E42: 220 | F42: Scorpio 10° | G42: Akrav 10° | H42: Scorpion 10°
A43: 41 | B43: Taurus 11° | C43: Shor 11° | D43: Bull 11° | E43: 221 | F43: Scorpio 11° | G43: Akrav 11° | H43: Scorpion 11°
A44: 42 | B44: Taurus 12° | C44: Shor 12° | D44: Bull 12° | E44: 222 | F44: Scorpio 12° | G44: Akrav 12° | H44: Scorpion 12°
A45: 43 | B45: Taurus 13° | C45: Shor 13° | D45: Bull 13° | E45: 223 | F45: Scorpio 13° | G45: Akrav 13° | H45: Scorpion 13°
A46: 44 | B46: Taurus 14° | C46: Shor 14° | D46: Bull 14° | E46: 224 | F46: Scorpio 14° | G46: Akrav 14° | H46: Scorpion 14°
A47: 45 | B47: Taurus 15° | C47: Shor 15° | D47: Bull 15° | E47: 225 | F47: Scorpio 15° | G47: Akrav 15° | H47: Scorpion 15°
A48: 46 | B48: Taurus 16° | C48: Shor 16° | D48: Bull 16° | E48: 226 | F48: Scorpio 16° | G48: Akrav 16° | H48: Scorpion 16°
A49: 47 | B49: Taurus 17° | C49: Shor 17° | D49: Bull 17° | E49: 227 | F49: Scorpio 17° | G49: Akrav 17° | H49: Scorpion 17°
A50: 48 | B50: Taurus 18° | C50: Shor 18° | D50: Bull 18° | E50: 228 | F50: Scorpio 18° | G50: Akrav 18° | H50: Scorpion 18°
A51: 49 | B51: Taurus 19° | C51: Shor 19° | D51: Bull 19° | E51: 229 | F51: Scorpio 19° | G51: Akrav 19° | H51: Scorpion 19°
A52: 50 | B52: Taurus 20° | C52: Shor 20° | D52: Bull 20° | E52: 230 | F52: Scorpio 20° | G52: Akrav 20° | H52: Scorpion 20°
A53: 51 | B53: Taurus 21° | C53: Shor 21° | D53: Bull 21° | E53: 231 | F53: Scorpio 21° | G53: Akrav 21° | H53: Scorpion 21°
A54: 52 | B54: Taurus 22° | C54: Shor 22° | D54: Bull 22° | E54: 232 | F54: Scorpio 22° | G54: Akrav 22° | H54: Scorpion 22°
A55: 53 | B55: Taurus 23° | C55: Shor 23° | D55: Bull 23° | E55: 233 | F55: Scorpio 23° | G55: Akrav 23° | H55: Scorpion 23°
A56: 54 | B56: Taurus 24° | C56: Shor 24° | D56: Bull 24° | E56: 234 | F56: Scorpio 24° | G56: Akrav 24° | H56: Scorpion 24°
A57: 55 | B57: Taurus 25° | C57: Shor 25° | D57: Bull 25° | E57: 235 | F57: Scorpio 25° | G57: Akrav 25° | H57: Scorpion 25°
A58: 56 | B58: Taurus 26° | C58: Shor 26° | D58: Bull 26° | E58: 236 | F58: Scorpio 26° | G58: Akrav 26° | H58: Scorpion 26°
A59: 57 | B59: Taurus 27° | C59: Shor 27° | D59: Bull 27° | E59: 237 | F59: Scorpio 27° | G59: Akrav 27° | H59: Scorpion 27°
A60: 58 | B60: Taurus 28° | C60: Shor 28° | D60: Bull 28° | E60: 238 | F60: Scorpio 28° | G60: Akrav 28° | H60: Scorpion 28°
A61: 59 | B61: Taurus 29° | C61: Shor 29° | D61: Bull 29° | E61: 239 | F61: Scorpio 29° | G61: Akrav 29° | H61: Scorpion 29°
A62: 60 | B62: Gemini 0° | C62: T'omim 0° | D62: Twins 0° | E62: 240 | F62: Sagittarius 0° | G62: Keshet 0° | H62: Bow 0°
A63: 61 | B63: Gemini 1° | C63: T'omim 1° | D63: Twins 1° | E63: 241 | F63: Sagittarius 1° | G63: Keshet 1° | H63: Bow 1°
A64: 62 | B64: Gemini 2° | C64: T'omim 2° | D64: Twins 2° | E64: 242 | F64: Sagittarius 2° | G64: Keshet 2° | H64: Bow 2°
A65: 63 | B65: Gemini 3° | C65: T'omim 3° | D65: Twins 3° | E65: 243 | F65: Sagittarius 3° | G65: Keshet 3° | H65: Bow 3°
A66: 64 | B66: =DegreesInConstellationClassic($A66) -> Gemini 4° | C66: =DegreesInConstellationHebrew($A66) -> T'omim 4° | D66: =DegreesInConstellationEnglish($A66) -> Twins 4° | E66: 244 | F66: =DegreesInConstellationClassic($E66) -> Sagittarius 4° | G66: =DegreesInConstellationHebrew($E66) -> Keshet 4° | H66: =DegreesInConstellationEnglish($E66) -> Bow 4°
A67: =A66+1 -> 65 | B67: Gemini 5° | C67: T'omim 5° | D67: Twins 5° | E67: =E66+1 -> 245 | F67: Sagittarius 5° | G67: Keshet 5° | H67: Bow 5°
A68: 66 | B68: Gemini 6° | C68: T'omim 6° | D68: Twins 6° | E68: 246 | F68: Sagittarius 6° | G68: Keshet 6° | H68: Bow 6°
A69: 67 | B69: Gemini 7° | C69: T'omim 7° | D69: Twins 7° | E69: 247 | F69: Sagittarius 7° | G69: Keshet 7° | H69: Bow 7°
A70: 68 | B70: Gemini 8° | C70: T'omim 8° | D70: Twins 8° | E70: 248 | F70: Sagittarius 8° | G70: Keshet 8° | H70: Bow 8°
A71: 69 | B71: Gemini 9° | C71: T'omim 9° | D71: Twins 9° | E71: 249 | F71: Sagittarius 9° | G71: Keshet 9° | H71: Bow 9°
A72: 70 | B72: Gemini 10° | C72: T'omim 10° | D72: Twins 10° | E72: 250 | F72: Sagittarius 10° | G72: Keshet 10° | H72: Bow 10°
A73: 71 | B73: Gemini 11° | C73: T'omim 11° | D73: Twins 11° | E73: 251 | F73: Sagittarius 11° | G73: Keshet 11° | H73: Bow 11°
A74: 72 | B74: Gemini 12° | C74: T'omim 12° | D74: Twins 12° | E74: 252 | F74: Sagittarius 12° | G74: Keshet 12° | H74: Bow 12°
A75: 73 | B75: Gemini 13° | C75: T'omim 13° | D75: Twins 13° | E75: 253 | F75: Sagittarius 13° | G75: Keshet 13° | H75: Bow 13°
A76: 74 | B76: Gemini 14° | C76: T'omim 14° | D76: Twins 14° | E76: 254 | F76: Sagittarius 14° | G76: Keshet 14° | H76: Bow 14°
A77: 75 | B77: Gemini 15° | C77: T'omim 15° | D77: Twins 15° | E77: 255 | F77: Sagittarius 15° | G77: Keshet 15° | H77: Bow 15°
A78: 76 | B78: Gemini 16° | C78: T'omim 16° | D78: Twins 16° | E78: 256 | F78: Sagittarius 16° | G78: Keshet 16° | H78: Bow 16°
A79: 77 | B79: Gemini 17° | C79: T'omim 17° | D79: Twins 17° | E79: 257 | F79: Sagittarius 17° | G79: Keshet 17° | H79: Bow 17°
A80: 78 | B80: Gemini 18° | C80: T'omim 18° | D80: Twins 18° | E80: 258 | F80: Sagittarius 18° | G80: Keshet 18° | H80: Bow 18°
A81: 79 | B81: Gemini 19° | C81: T'omim 19° | D81: Twins 19° | E81: 259 | F81: Sagittarius 19° | G81: Keshet 19° | H81: Bow 19°
A82: 80 | B82: Gemini 20° | C82: T'omim 20° | D82: Twins 20° | E82: 260 | F82: Sagittarius 20° | G82: Keshet 20° | H82: Bow 20°
A83: 81 | B83: Gemini 21° | C83: T'omim 21° | D83: Twins 21° | E83: 261 | F83: Sagittarius 21° | G83: Keshet 21° | H83: Bow 21°
A84: 82 | B84: Gemini 22° | C84: T'omim 22° | D84: Twins 22° | E84: 262 | F84: Sagittarius 22° | G84: Keshet 22° | H84: Bow 22°
A85: 83 | B85: Gemini 23° | C85: T'omim 23° | D85: Twins 23° | E85: 263 | F85: Sagittarius 23° | G85: Keshet 23° | H85: Bow 23°
A86: 84 | B86: Gemini 24° | C86: T'omim 24° | D86: Twins 24° | E86: 264 | F86: Sagittarius 24° | G86: Keshet 24° | H86: Bow 24°
A87: 85 | B87: Gemini 25° | C87: T'omim 25° | D87: Twins 25° | E87: 265 | F87: Sagittarius 25° | G87: Keshet 25° | H87: Bow 25°
A88: 86 | B88: Gemini 26° | C88: T'omim 26° | D88: Twins 26° | E88: 266 | F88: Sagittarius 26° | G88: Keshet 26° | H88: Bow 26°
A89: 87 | B89: Gemini 27° | C89: T'omim 27° | D89: Twins 27° | E89: 267 | F89: Sagittarius 27° | G89: Keshet 27° | H89: Bow 27°
A90: 88 | B90: Gemini 28° | C90: T'omim 28° | D90: Twins 28° | E90: 268 | F90: Sagittarius 28° | G90: Keshet 28° | H90: Bow 28°
A91: 89 | B91: Gemini 29° | C91: T'omim 29° | D91: Twins 29° | E91: 269 | F91: Sagittarius 29° | G91: Keshet 29° | H91: Bow 29°
A92: 90 | B92: Cancer 0° | C92: Sartan 0° | D92: Crab 0° | E92: 270 | F92: Capricorn 0° | G92: G'di 0° | H92: Kid 0°
A93: 91 | B93: Cancer 1° | C93: Sartan 1° | D93: Crab 1° | E93: 271 | F93: Capricorn 1° | G93: G'di 1° | H93: Kid 1°
A94: 92 | B94: Cancer 2° | C94: Sartan 2° | D94: Crab 2° | E94: 272 | F94: Capricorn 2° | G94: G'di 2° | H94: Kid 2°
A95: 93 | B95: Cancer 3° | C95: Sartan 3° | D95: Crab 3° | E95: 273 | F95: Capricorn 3° | G95: G'di 3° | H95: Kid 3°
A96: 94 | B96: Cancer 4° | C96: Sartan 4° | D96: Crab 4° | E96: 274 | F96: Capricorn 4° | G96: G'di 4° | H96: Kid 4°
A97: 95 | B97: Cancer 5° | C97: Sartan 5° | D97: Crab 5° | E97: 275 | F97: Capricorn 5° | G97: G'di 5° | H97: Kid 5°
A98: 96 | B98: =DegreesInConstellationClassic($A98) -> Cancer 6° | C98: =DegreesInConstellationHebrew($A98) -> Sartan 6° | D98: =DegreesInConstellationEnglish($A98) -> Crab 6° | E98: 276 | F98: =DegreesInConstellationClassic($E98) -> Capricorn 6° | G98: =DegreesInConstellationHebrew($E98) -> G'di 6° | H98: =DegreesInConstellationEnglish($E98) -> Kid 6°
A99: =A98+1 -> 97 | B99: Cancer 7° | C99: Sartan 7° | D99: Crab 7° | E99: =E98+1 -> 277 | F99: Capricorn 7° | G99: G'di 7° | H99: Kid 7°
A100: 98 | B100: Cancer 8° | C100: Sartan 8° | D100: Crab 8° | E100: 278 | F100: Capricorn 8° | G100: G'di 8° | H100: Kid 8°
A101: 99 | B101: Cancer 9° | C101: Sartan 9° | D101: Crab 9° | E101: 279 | F101: Capricorn 9° | G101: G'di 9° | H101: Kid 9°
A102: 100 | B102: Cancer 10° | C102: Sartan 10° | D102: Crab 10° | E102: 280 | F102: Capricorn 10° | G102: G'di 10° | H102: Kid 10°
A103: 101 | B103: Cancer 11° | C103: Sartan 11° | D103: Crab 11° | E103: 281 | F103: Capricorn 11° | G103: G'di 11° | H103: Kid 11°
A104: 102 | B104: Cancer 12° | C104: Sartan 12° | D104: Crab 12° | E104: 282 | F104: Capricorn 12° | G104: G'di 12° | H104: Kid 12°
A105: 103 | B105: Cancer 13° | C105: Sartan 13° | D105: Crab 13° | E105: 283 | F105: Capricorn 13° | G105: G'di 13° | H105: Kid 13°
A106: 104 | B106: Cancer 14° | C106: Sartan 14° | D106: Crab 14° | E106: 284 | F106: Capricorn 14° | G106: G'di 14° | H106: Kid 14°
A107: 105 | B107: Cancer 15° | C107: Sartan 15° | D107: Crab 15° | E107: 285 | F107: Capricorn 15° | G107: G'di 15° | H107: Kid 15°
A108: 106 | B108: Cancer 16° | C108: Sartan 16° | D108: Crab 16° | E108: 286 | F108: Capricorn 16° | G108: G'di 16° | H108: Kid 16°
A109: 107 | B109: Cancer 17° | C109: Sartan 17° | D109: Crab 17° | E109: 287 | F109: Capricorn 17° | G109: G'di 17° | H109: Kid 17°
A110: 108 | B110: Cancer 18° | C110: Sartan 18° | D110: Crab 18° | E110: 288 | F110: Capricorn 18° | G110: G'di 18° | H110: Kid 18°
A111: 109 | B111: Cancer 19° | C111: Sartan 19° | D111: Crab 19° | E111: 289 | F111: Capricorn 19° | G111: G'di 19° | H111: Kid 19°
A112: 110 | B112: Cancer 20° | C112: Sartan 20° | D112: Crab 20° | E112: 290 | F112: Capricorn 20° | G112: G'di 20° | H112: Kid 20°
A113: 111 | B113: Cancer 21° | C113: Sartan 21° | D113: Crab 21° | E113: 291 | F113: Capricorn 21° | G113: G'di 21° | H113: Kid 21°
A114: 112 | B114: Cancer 22° | C114: Sartan 22° | D114: Crab 22° | E114: 292 | F114: Capricorn 22° | G114: G'di 22° | H114: Kid 22°
A115: 113 | B115: Cancer 23° | C115: Sartan 23° | D115: Crab 23° | E115: 293 | F115: Capricorn 23° | G115: G'di 23° | H115: Kid 23°
A116: 114 | B116: Cancer 24° | C116: Sartan 24° | D116: Crab 24° | E116: 294 | F116: Capricorn 24° | G116: G'di 24° | H116: Kid 24°
A117: 115 | B117: Cancer 25° | C117: Sartan 25° | D117: Crab 25° | E117: 295 | F117: Capricorn 25° | G117: G'di 25° | H117: Kid 25°
A118: 116 | B118: Cancer 26° | C118: Sartan 26° | D118: Crab 26° | E118: 296 | F118: Capricorn 26° | G118: G'di 26° | H118: Kid 26°
A119: 117 | B119: Cancer 27° | C119: Sartan 27° | D119: Crab 27° | E119: 297 | F119: Capricorn 27° | G119: G'di 27° | H119: Kid 27°
A120: 118 | B120: Cancer 28° | C120: Sartan 28° | D120: Crab 28° | E120: 298 | F120: Capricorn 28° | G120: G'di 28° | H120: Kid 28°
A121: 119 | B121: Cancer 29° | C121: Sartan 29° | D121: Crab 29° | E121: 299 | F121: Capricorn 29° | G121: G'di 29° | H121: Kid 29°
A122: 120 | B122: Leo 0° | C122: Aryeh 0° | D122: Lion 0° | E122: 300 | F122: Aquarius 0° | G122: D'li 0° | H122: Water Bucket 0°
A123: 121 | B123: Leo 1° | C123: Aryeh 1° | D123: Lion 1° | E123: 301 | F123: Aquarius 1° | G123: D'li 1° | H123: Water Bucket 1°
A124: 122 | B124: Leo 2° | C124: Aryeh 2° | D124: Lion 2° | E124: 302 | F124: Aquarius 2° | G124: D'li 2° | H124: Water Bucket 2°
A125: 123 | B125: Leo 3° | C125: Aryeh 3° | D125: Lion 3° | E125: 303 | F125: Aquarius 3° | G125: D'li 3° | H125: Water Bucket 3°
A126: 124 | B126: Leo 4° | C126: Aryeh 4° | D126: Lion 4° | E126: 304 | F126: Aquarius 4° | G126: D'li 4° | H126: Water Bucket 4°
A127: 125 | B127: Leo 5° | C127: Aryeh 5° | D127: Lion 5° | E127: 305 | F127: Aquarius 5° | G127: D'li 5° | H127: Water Bucket 5°
A128: 126 | B128: Leo 6° | C128: Aryeh 6° | D128: Lion 6° | E128: 306 | F128: Aquarius 6° | G128: D'li 6° | H128: Water Bucket 6°
A129: 127 | B129: Leo 7° | C129: Aryeh 7° | D129: Lion 7° | E129: 307 | F129: Aquarius 7° | G129: D'li 7° | H129: Water Bucket 7°
A130: 128 | B130: =DegreesInConstellationClassic($A130) -> Leo 8° | C130: =DegreesInConstellationHebrew($A130) -> Aryeh 8° | D130: =DegreesInConstellationEnglish($A130) -> Lion 8° | E130: 308 | F130: =DegreesInConstellationClassic($E130) -> Aquarius 8° | G130: =DegreesInConstellationHebrew($E130) -> D'li 8° | H130: =DegreesInConstellationEnglish($E130) -> Water Bucket 8°
A131: =A130+1 -> 129 | B131: Leo 9° | C131: Aryeh 9° | D131: Lion 9° | E131: =E130+1 -> 309 | F131: Aquarius 9° | G131: D'li 9° | H131: Water Bucket 9°
A132: 130 | B132: Leo 10° | C132: Aryeh 10° | D132: Lion 10° | E132: 310 | F132: Aquarius 10° | G132: D'li 10° | H132: Water Bucket 10°
A133: 131 | B133: Leo 11° | C133: Aryeh 11° | D133: Lion 11° | E133: 311 | F133: Aquarius 11° | G133: D'li 11° | H133: Water Bucket 11°
A134: 132 | B134: Leo 12° | C134: Aryeh 12° | D134: Lion 12° | E134: 312 | F134: Aquarius 12° | G134: D'li 12° | H134: Water Bucket 12°
A135: 133 | B135: Leo 13° | C135: Aryeh 13° | D135: Lion 13° | E135: 313 | F135: Aquarius 13° | G135: D'li 13° | H135: Water Bucket 13°
A136: 134 | B136: Leo 14° | C136: Aryeh 14° | D136: Lion 14° | E136: 314 | F136: Aquarius 14° | G136: D'li 14° | H136: Water Bucket 14°
A137: 135 | B137: Leo 15° | C137: Aryeh 15° | D137: Lion 15° | E137: 315 | F137: Aquarius 15° | G137: D'li 15° | H137: Water Bucket 15°
A138: 136 | B138: Leo 16° | C138: Aryeh 16° | D138: Lion 16° | E138: 316 | F138: Aquarius 16° | G138: D'li 16° | H138: Water Bucket 16°
A139: 137 | B139: Leo 17° | C139: Aryeh 17° | D139: Lion 17° | E139: 317 | F139: Aquarius 17° | G139: D'li 17° | H139: Water Bucket 17°
A140: 138 | B140: Leo 18° | C140: Aryeh 18° | D140: Lion 18° | E140: 318 | F140: Aquarius 18° | G140: D'li 18° | H140: Water Bucket 18°
A141: 139 | B141: Leo 19° | C141: Aryeh 19° | D141: Lion 19° | E141: 319 | F141: Aquarius 19° | G141: D'li 19° | H141: Water Bucket 19°
A142: 140 | B142: Leo 20° | C142: Aryeh 20° | D142: Lion 20° | E142: 320 | F142: Aquarius 20° | G142: D'li 20° | H142: Water Bucket 20°
A143: 141 | B143: Leo 21° | C143: Aryeh 21° | D143: Lion 21° | E143: 321 | F143: Aquarius 21° | G143: D'li 21° | H143: Water Bucket 21°
A144: 142 | B144: Leo 22° | C144: Aryeh 22° | D144: Lion 22° | E144: 322 | F144: Aquarius 22° | G144: D'li 22° | H144: Water Bucket 22°
A145: 143 | B145: Leo 23° | C145: Aryeh 23° | D145: Lion 23° | E145: 323 | F145: Aquarius 23° | G145: D'li 23° | H145: Water Bucket 23°
A146: 144 | B146: Leo 24° | C146: Aryeh 24° | D146: Lion 24° | E146: 324 | F146: Aquarius 24° | G146: D'li 24° | H146: Water Bucket 24°
A147: 145 | B147: Leo 25° | C147: Aryeh 25° | D147: Lion 25° | E147: 325 | F147: Aquarius 25° | G147: D'li 25° | H147: Water Bucket 25°
A148: 146 | B148: Leo 26° | C148: Aryeh 26° | D148: Lion 26° | E148: 326 | F148: Aquarius 26° | G148: D'li 26° | H148: Water Bucket 26°
A149: 147 | B149: Leo 27° | C149: Aryeh 27° | D149: Lion 27° | E149: 327 | F149: Aquarius 27° | G149: D'li 27° | H149: Water Bucket 27°
A150: 148 | B150: Leo 28° | C150: Aryeh 28° | D150: Lion 28° | E150: 328 | F150: Aquarius 28° | G150: D'li 28° | H150: Water Bucket 28°
A151: 149 | B151: Leo 29° | C151: Aryeh 29° | D151: Lion 29° | E151: 329 | F151: Aquarius 29° | G151: D'li 29° | H151: Water Bucket 29°
A152: 150 | B152: Virgo 0° | C152: Betulah 0° | D152: Virgin 0° | E152: 330 | F152: Pisces 0° | G152: Dagim 0° | H152: Fish 0°
A153: 151 | B153: Virgo 1° | C153: Betulah 1° | D153: Virgin 1° | E153: 331 | F153: Pisces 1° | G153: Dagim 1° | H153: Fish 1°
A154: 152 | B154: Virgo 2° | C154: Betulah 2° | D154: Virgin 2° | E154: 332 | F154: Pisces 2° | G154: Dagim 2° | H154: Fish 2°
A155: 153 | B155: Virgo 3° | C155: Betulah 3° | D155: Virgin 3° | E155: 333 | F155: Pisces 3° | G155: Dagim 3° | H155: Fish 3°
A156: 154 | B156: Virgo 4° | C156: Betulah 4° | D156: Virgin 4° | E156: 334 | F156: Pisces 4° | G156: Dagim 4° | H156: Fish 4°
A157: 155 | B157: Virgo 5° | C157: Betulah 5° | D157: Virgin 5° | E157: 335 | F157: Pisces 5° | G157: Dagim 5° | H157: Fish 5°
A158: 156 | B158: Virgo 6° | C158: Betulah 6° | D158: Virgin 6° | E158: 336 | F158: Pisces 6° | G158: Dagim 6° | H158: Fish 6°
A159: 157 | B159: Virgo 7° | C159: Betulah 7° | D159: Virgin 7° | E159: 337 | F159: Pisces 7° | G159: Dagim 7° | H159: Fish 7°
A160: 158 | B160: Virgo 8° | C160: Betulah 8° | D160: Virgin 8° | E160: 338 | F160: Pisces 8° | G160: Dagim 8° | H160: Fish 8°
A161: 159 | B161: Virgo 9° | C161: Betulah 9° | D161: Virgin 9° | E161: 339 | F161: Pisces 9° | G161: Dagim 9° | H161: Fish 9°
A162: 160 | B162: =DegreesInConstellationClassic($A162) -> Virgo 10° | C162: =DegreesInConstellationHebrew($A162) -> Betulah 10° | D162: =DegreesInConstellationEnglish($A162) -> Virgin 10° | E162: 340 | F162: =DegreesInConstellationClassic($E162) -> Pisces 10° | G162: =DegreesInConstellationHebrew($E162) -> Dagim 10° | H162: =DegreesInConstellationEnglish($E162) -> Fish 10°
A163: =A162+1 -> 161 | B163: Virgo 11° | C163: Betulah 11° | D163: Virgin 11° | E163: =E162+1 -> 341 | F163: Pisces 11° | G163: Dagim 11° | H163: Fish 11°
A164: 162 | B164: Virgo 12° | C164: Betulah 12° | D164: Virgin 12° | E164: 342 | F164: Pisces 12° | G164: Dagim 12° | H164: Fish 12°
A165: 163 | B165: Virgo 13° | C165: Betulah 13° | D165: Virgin 13° | E165: 343 | F165: Pisces 13° | G165: Dagim 13° | H165: Fish 13°
A166: 164 | B166: Virgo 14° | C166: Betulah 14° | D166: Virgin 14° | E166: 344 | F166: Pisces 14° | G166: Dagim 14° | H166: Fish 14°
A167: 165 | B167: Virgo 15° | C167: Betulah 15° | D167: Virgin 15° | E167: 345 | F167: Pisces 15° | G167: Dagim 15° | H167: Fish 15°
A168: 166 | B168: Virgo 16° | C168: Betulah 16° | D168: Virgin 16° | E168: 346 | F168: Pisces 16° | G168: Dagim 16° | H168: Fish 16°
A169: 167 | B169: Virgo 17° | C169: Betulah 17° | D169: Virgin 17° | E169: 347 | F169: Pisces 17° | G169: Dagim 17° | H169: Fish 17°
A170: 168 | B170: Virgo 18° | C170: Betulah 18° | D170: Virgin 18° | E170: 348 | F170: Pisces 18° | G170: Dagim 18° | H170: Fish 18°
A171: 169 | B171: Virgo 19° | C171: Betulah 19° | D171: Virgin 19° | E171: 349 | F171: Pisces 19° | G171: Dagim 19° | H171: Fish 19°
A172: 170 | B172: Virgo 20° | C172: Betulah 20° | D172: Virgin 20° | E172: 350 | F172: Pisces 20° | G172: Dagim 20° | H172: Fish 20°
A173: 171 | B173: Virgo 21° | C173: Betulah 21° | D173: Virgin 21° | E173: 351 | F173: Pisces 21° | G173: Dagim 21° | H173: Fish 21°
A174: 172 | B174: Virgo 22° | C174: Betulah 22° | D174: Virgin 22° | E174: 352 | F174: Pisces 22° | G174: Dagim 22° | H174: Fish 22°
A175: 173 | B175: Virgo 23° | C175: Betulah 23° | D175: Virgin 23° | E175: 353 | F175: Pisces 23° | G175: Dagim 23° | H175: Fish 23°
A176: 174 | B176: Virgo 24° | C176: Betulah 24° | D176: Virgin 24° | E176: 354 | F176: Pisces 24° | G176: Dagim 24° | H176: Fish 24°
A177: 175 | B177: Virgo 25° | C177: Betulah 25° | D177: Virgin 25° | E177: 355 | F177: Pisces 25° | G177: Dagim 25° | H177: Fish 25°
A178: 176 | B178: Virgo 26° | C178: Betulah 26° | D178: Virgin 26° | E178: 356 | F178: Pisces 26° | G178: Dagim 26° | H178: Fish 26°
A179: 177 | B179: Virgo 27° | C179: Betulah 27° | D179: Virgin 27° | E179: 357 | F179: Pisces 27° | G179: Dagim 27° | H179: Fish 27°
A180: 178 | B180: Virgo 28° | C180: Betulah 28° | D180: Virgin 28° | E180: 358 | F180: Pisces 28° | G180: Dagim 28° | H180: Fish 28°
A181: 179 | B181: Virgo 29° | C181: Betulah 29° | D181: Virgin 29° | E181: 359 | F181: Pisces 29° | G181: Dagim 29° | H181: Fish 29°

Sheet Tables
A1: Lunar Long | B1: Constellation | C1: Hebrew | D1: Long Subtract | E1: Lat Subtract
A2: 0 | B2: =RMBM_DegreesInConstellation(A2) -> Aries 0° | C2: =DegreesInConstellationHebrew(A2) -> Taleh 0° | D2: 59 | E2: 9
A3: 30 | B3: =RMBM_DegreesInConstellation(A3) -> Taurus 0° | C3: Shor 0° | D3: 60 | E3: 10
A4: 60 | B4: Gemini 0° | C4: T'omim 0° | D4: 58 | E4: 16
A5: 90 | B5: Cancer 0° | C5: Sartan 0° | D5: 52 | E5: 27
A6: 120 | B6: Leo 0° | C6: Aryeh 0° | D6: 43 | E6: 38
A7: 150 | B7: Virgo 0° | C7: Betulah 0° | D7: 37 | E7: 44
A8: 180 | B8: Libra 0° | C8: Moznaim 0° | D8: 34 | E8: 46
A9: 210 | B9: Scorpio 0° | C9: Akrav 0° | D9: 34 | E9: 45
A10: 240 | B10: Sagittarius 0° | C10: Keshet 0° | D10: 36 | E10: 44
A11: 270 | B11: Capricorn 0° | C11: G'di 0° | D11: 44 | E11: 36
A12: 300 | B12: Aquarius 0° | C12: D'li 0° | D12: 53 | E12: 27
A13: 330 | B13: Pisces 0° | C13: Dagim 0° | D13: 58 | E13: 12
A15: Second Latitude amount to set aside (chapter 17 #10) | E15: Half Cosine | F15: Hebrew | G15: Hebrew
A16: From | B16: To | C16: Mid | D16: Separate | E16: Curve Fit | F16: From | G16: To
A17: 0 | B17: 20 | C17: =AVERAGE(A17:B17) -> 10 | D17: =2/5 -> 0.4 | E17: =ABS(COS(RADIANS(C17)))/2.5 -> 0.3939231012 | F17: =DegreesInConstellationHebrew(A17) -> Taleh 0° | G17: =DegreesInConstellationHebrew(B17) -> Taleh 20°
A18: 20 | B18: 40 | C18: =AVERAGE(A18:B18) -> 30 | D18: =1/3 -> 0.3333333333 | E18: =ABS(COS(RADIANS(C18)))/2.5 -> 0.3464101615 | F18: =DegreesInConstellationHebrew(A18) -> Taleh 20° | G18: =DegreesInConstellationHebrew(B18) -> Shor 10°
A19: 40 | B19: 50 | C19: 45 | D19: =1/4 -> 0.25 | E19: 0.2828427125 | F19: =DegreesInConstellationHebrew(A19) -> Shor 10° | G19: =DegreesInConstellationHebrew(B19) -> Shor 20°
A20: 50 | B20: 60 | C20: 55 | D20: =1/5 -> 0.2 | E20: 0.2294305745 | F20: =DegreesInConstellationHebrew(A20) -> Shor 20° | G20: =DegreesInConstellationHebrew(B20) -> T'omim 0°
A21: 60 | B21: 70 | C21: 65 | D21: =1/6 -> 0.1666666667 | E21: 0.1690473047 | F21: =DegreesInConstellationHebrew(A21) -> T'omim 0° | G21: =DegreesInConstellationHebrew(B21) -> T'omim 10°
A22: 70 | B22: 80 | C22: 75 | D22: =1/12 -> 0.08333333333 | E22: 0.103527618 | F22: =DegreesInConstellationHebrew(A22) -> T'omim 10° | G22: =DegreesInConstellationHebrew(B22) -> T'omim 20°
A23: 80 | B23: 85 | C23: 82.5 | D23: =1/24 -> 0.04166666667 | E23: 0.05221047689 | F23: =DegreesInConstellationHebrew(A23) -> T'omim 20° | G23: =DegreesInConstellationHebrew(B23) -> T'omim 25°
A24: 85 | B24: 95 | C24: 90 | D24: 0 | E24: 2.45029691e-17 | F24: =DegreesInConstellationHebrew(A24) -> T'omim 25° | G24: =DegreesInConstellationHebrew(B24) -> Sartan 5°
A25: 95 | B25: 100 | C25: 97.5 | D25: =1/24 -> 0.04166666667 | E25: 0.05221047689 | F25: =DegreesInConstellationHebrew(A25) -> Sartan 5° | G25: =DegreesInConstellationHebrew(B25) -> Sartan 10°
A26: 100 | B26: 110 | C26: 105 | D26: =1/12 -> 0.08333333333 | E26: 0.103527618 | F26: =DegreesInConstellationHebrew(A26) -> Sartan 10° | G26: =DegreesInConstellationHebrew(B26) -> Sartan 20°
A27: 110 | B27: 120 | C27: 115 | D27: =1/6 -> 0.1666666667 | E27: 0.1690473047 | F27: =DegreesInConstellationHebrew(A27) -> Sartan 20° | G27: =DegreesInConstellationHebrew(B27) -> Aryeh 0°
A28: 120 | B28: 130 | C28: 125 | D28: =1/5 -> 0.2 | E28: 0.2294305745 | F28: =DegreesInConstellationHebrew(A28) -> Aryeh 0° | G28: =DegreesInConstellationHebrew(B28) -> Aryeh 10°
A29: 130 | B29: 140 | C29: 135 | D29: =1/4 -> 0.25 | E29: 0.2828427125 | F29: =DegreesInConstellationHebrew(A29) -> Aryeh 10° | G29: =DegreesInConstellationHebrew(B29) -> Aryeh 20°
A30: 140 | B30: 160 | C30: 150 | D30: =1/3 -> 0.3333333333 | E30: 0.3464101615 | F30: =DegreesInConstellationHebrew(A30) -> Aryeh 20° | G30: =DegreesInConstellationHebrew(B30) -> Betulah 10°
A31: 160 | B31: 180 | C31: 170 | D31: =2/5 -> 0.4 | E31: 0.3939231012 | F31: =DegreesInConstellationHebrew(A31) -> Betulah 10° | G31: =DegreesInConstellationHebrew(B31) -> Moznaim 0°
A32: 180 | B32: 200 | C32: 190 | D32: =2/5 -> 0.4 | E32: 0.3939231012 | F32: =DegreesInConstellationHebrew(A32) -> Moznaim 0° | G32: =DegreesInConstellationHebrew(B32) -> Moznaim 20°
A33: 200 | B33: 220 | C33: 210 | D33: =1/3 -> 0.3333333333 | E33: 0.3464101615 | F33: =DegreesInConstellationHebrew(A33) -> Moznaim 20° | G33: =DegreesInConstellationHebrew(B33) -> Akrav 10°
A34: 220 | B34: 230 | C34: 225 | D34: =1/4 -> 0.25 | E34: 0.2828427125 | F34: =DegreesInConstellationHebrew(A34) -> Akrav 10° | G34: =DegreesInConstellationHebrew(B34) -> Akrav 20°
A35: 230 | B35: 240 | C35: 235 | D35: =1/5 -> 0.2 | E35: 0.2294305745 | F35: =DegreesInConstellationHebrew(A35) -> Akrav 20° | G35: =DegreesInConstellationHebrew(B35) -> Keshet 0°
A36: 240 | B36: 250 | C36: 245 | D36: =1/6 -> 0.1666666667 | E36: 0.1690473047 | F36: =DegreesInConstellationHebrew(A36) -> Keshet 0° | G36: =DegreesInConstellationHebrew(B36) -> Keshet 10°
A37: 250 | B37: 260 | C37: 255 | D37: =1/12 -> 0.08333333333 | E37: 0.103527618 | F37: =DegreesInConstellationHebrew(A37) -> Keshet 10° | G37: =DegreesInConstellationHebrew(B37) -> Keshet 20°
A38: 260 | B38: 265 | C38: 262.5 | D38: =1/24 -> 0.04166666667 | E38: 0.05221047689 | F38: =DegreesInConstellationHebrew(A38) -> Keshet 20° | G38: =DegreesInConstellationHebrew(B38) -> Keshet 25°
A39: 265 | B39: 275 | C39: 270 | D39: 0 | E39: 7.350890729e-17 | F39: =DegreesInConstellationHebrew(A39) -> Keshet 25° | G39: =DegreesInConstellationHebrew(B39) -> G'di 5°
A40: 275 | B40: 280 | C40: 277.5 | D40: =1/24 -> 0.04166666667 | E40: 0.05221047689 | F40: =DegreesInConstellationHebrew(A40) -> G'di 5° | G40: =DegreesInConstellationHebrew(B40) -> G'di 10°
A41: 280 | B41: 290 | C41: =AVERAGE(A41:B41) -> 285 | D41: =1/12 -> 0.08333333333 | E41: 0.103527618 | F41: =DegreesInConstellationHebrew(A41) -> G'di 10° | G41: =DegreesInConstellationHebrew(B41) -> G'di 20°
A42: 290 | B42: 300 | C42: =AVERAGE(A42:B42) -> 295 | D42: =1/6 -> 0.1666666667 | E42: 0.1690473047 | F42: =DegreesInConstellationHebrew(A42) -> G'di 20° | G42: =DegreesInConstellationHebrew(B42) -> D'li 0°
A43: 300 | B43: 310 | C43: =AVERAGE(A43:B43) -> 305 | D43: =1/5 -> 0.2 | E43: 0.2294305745 | F43: =DegreesInConstellationHebrew(A43) -> D'li 0° | G43: =DegreesInConstellationHebrew(B43) -> D'li 10°
A44: 310 | B44: 320 | C44: =AVERAGE(A44:B44) -> 315 | D44: =1/4 -> 0.25 | E44: 0.2828427125 | F44: =DegreesInConstellationHebrew(A44) -> D'li 10° | G44: =DegreesInConstellationHebrew(B44) -> D'li 20°
A45: 320 | B45: 340 | C45: =AVERAGE(A45:B45) -> 330 | D45: =1/3 -> 0.3333333333 | E45: 0.3464101615 | F45: =DegreesInConstellationHebrew(A45) -> D'li 20° | G45: =DegreesInConstellationHebrew(B45) -> Dagim 10°
A46: 340 | B46: 360 | C46: 350 | D46: =2/5 -> 0.4 | E46: 0.3939231012 | F46: =DegreesInConstellationHebrew(A46) -> Dagim 10° | G46: =DegreesInConstellationHebrew(B46) -> 0°
A49: Third Longitude Adjustment (chapter 17 #12)
A50: Sign | B50: From | C50: To | D50: Mid | E50: Adjust
A51: Aries | B51: 0 | C51: 30 | D51: =AVERAGE(B51:C51) -> 15 | E51: =1/6 -> 0.1666666667
A52: Taurus | B52: 30 | C52: 60 | D52: =AVERAGE(B52:C52) -> 45 | E52: =1/5 -> 0.2
A53: Gemini | B53: 60 | C53: 90 | D53: =AVERAGE(B53:C53) -> 75 | E53: =1/6 -> 0.1666666667
A54: Cancer | B54: 90 | C54: 120 | D54: =AVERAGE(B54:C54) -> 105 | E54: 0
A55: Leo | B55: 120 | C55: 150 | D55: 135 | E55: =-1/5 -> -0.2
A56: Virgo | B56: 150 | C56: 180 | D56: 165 | E56: =-1/3 -> -0.3333333333
A57: Libra | B57: 180 | C57: 210 | D57: 195 | E57: =-1/3 -> -0.3333333333
A58: Scorpio | B58: 210 | C58: 240 | D58: 225 | E58: =-1/5 -> -0.2
A59: Sagittarius | B59: 240 | C59: 270 | D59: 255 | E59: 0
A60: Capricorn | B60: 270 | C60: 300 | D60: 285 | E60: =1/6 -> 0.1666666667
A61: Aquarius | B61: 300 | C61: 330 | D61: 315 | E61: =1/5 -> 0.2
A62: Pisces | B62: 330 | C62: 360 | D62: 345 | E62: =1/6 -> 0.1666666667
A65: Declination of the Ecliptic (chapter 19 #7, #8, #9)
A67: Point At | B67: Declination | C67: Sine Fit
A68: 0 | B68: 0 | C68: =SinDegrees(A68)*AxialTilt -> 0
A69: 10 | B69: 4 | C69: 4.080732175
A70: 20 | B70: 8 | C70: 8.037473368
A71: 30 | B71: 11.5 | C71: 11.75
A72: 40 | B72: 15 | C72: 15.10550883
A73: 50 | B73: 18 | C73: 18.00204441
A74: 60 | B74: 20 | C74: 20.35159699
A75: 70 | B75: 22 | C75: 22.08277659
A76: 80 | B76: 23 | C76: 23.1429822
A77: 90 | B77: 23.5 | C77: 23.5
A78: 100 | B78: 23 | C78: 23.1429822
A79: 110 | B79: 22 | C79: 22.08277659
A80: 120 | B80: 20 | C80: 20.35159699
A81: 130 | B81: 18 | C81: 18.00204441
A82: 140 | B82: 15 | C82: 15.10550883
A83: 150 | B83: 11.5 | C83: 11.75
A84: 160 | B84: 8 | C84: 8.037473368
A85: 170 | B85: 4 | C85: 4.080732175
A86: 180 | B86: 0 | C86: -1.799427288e-14
A87: 190 | B87: =-B69 -> -4 | C87: -4.080732175
A88: 200 | B88: =-B70 -> -8 | C88: -8.037473368
A89: 210 | B89: -11.5 | C89: -11.75
A90: 220 | B90: -15 | C90: -15.10550883
A91: 230 | B91: -18 | C91: -18.00204441
A92: 240 | B92: -20 | C92: -20.35159699
A93: 250 | B93: -22 | C93: -22.08277659
A94: 260 | B94: -23 | C94: -23.1429822
A95: 270 | B95: -23.5 | C95: -23.5
A96: 280 | B96: -23 | C96: -23.1429822
A97: 290 | B97: -22 | C97: -22.08277659
A98: 300 | B98: -20 | C98: -20.35159699
A99: 310 | B99: -18 | C99: -18.00204441
A100: 320 | B100: -15 | C100: -15.10550883
A101: 330 | B101: -11.5 | C101: -11.75
A102: 340 | B102: -8 | C102: -8.037473368
A103: 350 | B103: -4 | C103: -4.080732175
A104: 360 | B104: 0 | C104: 0
A107: Arc of Sight | B107: 1st Longitude
A108: 9 | B108: 13
A109: 10 | B109: 12
A110: 11 | B110: 11
A111: 12 | B111: 10
A112: 13 | B112: 9

Sheet Lunar Latitude
A1: Course | B1: Deg | C1: Min | D1: Degrees | E1: Deg Min | F1: Minutes | G1: Sine Fit | H1: Rate
A2: 0 | B2: 0 | C2: 0 | D2: =B2+C2/60 -> 0 | E2: =DegreesToDMS(D2) -> 0° | F2: =B2*60+C2 -> 0 | G2: =5*SIN(RADIANS(A2)) -> 0 | H2: =5*COS(RADIANS(A2)) -> 5
A3: 10 | B3: 0 | C3: 52 | D3: 0.8666666667 | E3: =DegreesToDMS(D3) -> 0° 52' | F3: 52 | G3: =5*SIN(RADIANS(A3)) -> 0.8682408883 | H3: =5*COS(RADIANS(A3)) -> 4.924038765
A4: 20 | B4: 1 | C4: 43 | D4: 1.716666667 | E4: 1° 43' | F4: 103 | G4: 1.710100717 | H4: 4.698463104
A5: 30 | B5: 2 | C5: 30 | D5: 2.5 | E5: 2° 30' | F5: 150 | G5: 2.5 | H5: 4.330127019
A6: 40 | B6: 3 | C6: 13 | D6: 3.216666667 | E6: 3° 13' | F6: 193 | G6: 3.213938048 | H6: 3.830222216
A7: 50 | B7: 3 | C7: 50 | D7: 3.833333333 | E7: 3° 50' | F7: 230 | G7: 3.830222216 | H7: 3.213938048
A8: 60 | B8: 4 | C8: 20 | D8: 4.333333333 | E8: 4° 20' | F8: 260 | G8: 4.330127019 | H8: 2.5
A9: 70 | B9: 4 | C9: 42 | D9: 4.7 | E9: 4° 42' | F9: 282 | G9: 4.698463104 | H9: 1.710100717
A10: 80 | B10: 4 | C10: 55 | D10: 4.916666667 | E10: 4° 55' | F10: 295 | G10: 4.924038765 | H10: 0.8682408883
A11: 90 | B11: 5 | C11: 0 | D11: 5 | E11: 5° | F11: 300 | G11: 5 | H11: 3.062871137e-16
A12: 100 | B12: 4 | C12: 55 | D12: 4.916666667 | E12: 4° 55' | F12: 295 | G12: 4.924038765 | H12: -0.8682408883
A13: 110 | B13: 4 | C13: 42 | D13: 4.7 | E13: 4° 42' | F13: 282 | G13: 4.698463104 | H13: -1.710100717
A14: 120 | B14: 4 | C14: 20 | D14: 4.333333333 | E14: 4° 20' | F14: 260 | G14: 4.330127019 | H14: -2.5
A15: 130 | B15: 3 | C15: 50 | D15: 3.833333333 | E15: 3° 50' | F15: 230 | G15: 3.830222216 | H15: -3.213938048
A16: 140 | B16: 3 | C16: 13 | D16: 3.216666667 | E16: 3° 13' | F16: 193 | G16: 3.213938048 | H16: -3.830222216
A17: 150 | B17: 2 | C17: 30 | D17: 2.5 | E17: 2° 30' | F17: 150 | G17: 2.5 | H17: -4.330127019
A18: 160 | B18: 1 | C18: 43 | D18: 1.716666667 | E18: 1° 43' | F18: 103 | G18: 1.710100717 | H18: -4.698463104
A19: 170 | B19: 0 | C19: 52 | D19: 0.8666666667 | E19: 0° 52' | F19: 52 | G19: 0.8682408883 | H19: -4.924038765
A20: 180 | B20: 0 | C20: 0 | D20: 0 | E20: 0° | F20: 0 | G20: 6.125742275e-16 | H20: -5
A21: 190 | B21: 0 | C21: 52 | D21: =-(B21+C21/60) -> -0.8666666667 | E21: -(0° 52') | F21: =-(B21*60+C21) -> -52 | G21: -0.8682408883 | H21: -4.924038765
A22: 200 | B22: 1 | C22: 43 | D22: =-(B22+C22/60) -> -1.716666667 | E22: -(1° 43') | F22: =-(B22*60+C22) -> -103 | G22: -1.710100717 | H22: -4.698463104
A23: 210 | B23: 2 | C23: 30 | D23: -2.5 | E23: -(2° 30') | F23: -150 | G23: -2.5 | H23: -4.330127019
A24: 220 | B24: 3 | C24: 13 | D24: -3.216666667 | E24: -(3° 13') | F24: -193 | G24: -3.213938048 | H24: -3.830222216
A25: 230 | B25: 3 | C25: 50 | D25: -3.833333333 | E25: -(3° 50') | F25: -230 | G25: -3.830222216 | H25: -3.213938048
A26: 240 | B26: 4 | C26: 20 | D26: -4.333333333 | E26: -(4° 20') | F26: -260 | G26: -4.330127019 | H26: -2.5
A27: 250 | B27: 4 | C27: 42 | D27: -4.7 | E27: -(4° 42') | F27: -282 | G27: -4.698463104 | H27: -1.710100717
A28: 260 | B28: 4 | C28: 55 | D28: -4.916666667 | E28: -(4° 55') | F28: -295 | G28: -4.924038765 | H28: -0.8682408883
A29: 270 | B29: 5 | C29: 0 | D29: -5 | E29: -(5°) | F29: -300 | G29: -5 | H29: -9.188613412e-16
A30: 280 | B30: 4 | C30: 55 | D30: -4.916666667 | E30: -(4° 55') | F30: -295 | G30: -4.924038765 | H30: 0.8682408883
A31: 290 | B31: 4 | C31: 42 | D31: -4.7 | E31: -(4° 42') | F31: -282 | G31: -4.698463104 | H31: 1.710100717
A32: 300 | B32: 4 | C32: 20 | D32: -4.333333333 | E32: -(4° 20') | F32: -260 | G32: -4.330127019 | H32: 2.5
A33: 310 | B33: 3 | C33: 50 | D33: -3.833333333 | E33: -(3° 50') | F33: -230 | G33: -3.830222216 | H33: 3.213938048
A34: 320 | B34: 3 | C34: 13 | D34: -3.216666667 | E34: -(3° 13') | F34: -193 | G34: -3.213938048 | H34: 3.830222216
A35: 330 | B35: 2 | C35: 30 | D35: -2.5 | E35: -(2° 30') | F35: -150 | G35: -2.5 | H35: 4.330127019
A36: 340 | B36: 1 | C36: 43 | D36: -1.716666667 | E36: -(1° 43') | F36: -103 | G36: -1.710100717 | H36: 4.698463104
A37: 350 | B37: 0 | C37: 52 | D37: -0.8666666667 | E37: -(0° 52') | F37: -52 | G37: -0.8682408883 | H37: 4.924038765
A38: 360 | B38: 0 | C38: 0 | D38: 0 | E38: 0° | F38: 0 | G38: -1.225148455e-15 | H38: 5

Sheet Angle of Course
A1: True Path | B1: Deg | C1: Min | D1: Angle of Course | E1: Minutes | F1: Poly Fit | G1: Sine Fit
A2: 0 | B2: 0 | C2: 0 | D2: =B2+C2/60 -> 0 | E2: =B2*60+C2 -> 0 | F2: =0.0000009213993*A2^4-0.000383319*A2^3+0.01325515*A2^2+4.642596*A2+1.508217 -> 1.508217 | G2: =305*SIN(RADIANS(A2)) -> 0
A3: 10 | B3: 0 | C3: 50 | D3: 0.8333333333 | E3: 50 | F3: 48.88558699 | G3: 52.96269419
A4: 20 | B4: 1 | C4: 38 | D4: 1.633333333 | E4: 98 | F4: 96.74306889 | G4: 104.3161437
A5: 30 | B5: 2 | C5: 24 | D5: 2.4 | E5: 144 | F5: 143.1124524 | G5: 152.5
A6: 40 | B6: 3 | C6: 6 | D6: 3.1 | E6: 186 | F6: 186.2466632 | G6: 196.050221
A7: 50 | B7: 3 | C7: 44 | D7: 3.733333333 | E7: 224 | F7: 224.6197626 | G7: 233.6435552
A8: 60 | B8: 4 | C8: 16 | D8: 4.266666667 | E8: 256 | F8: 256.9269479 | G8: 264.1377482
A9: 70 | B9: 4 | C9: 41 | D9: 4.683333333 | E9: 281 | F9: 282.0845522 | G9: 286.6062493
A10: 80 | B10: 5 | C10: 0 | D10: 5 | E10: 300 | F10: 299.2300443 | G10: 300.3663647
A11: 90 | B11: 5 | C11: 5 | D11: 5.083333333 | E11: 305 | F11: 307.7220291 | G11: 305
A12: 100 | B12: 5 | C12: 8 | D12: 5.133333333 | E12: 308 | F12: 307.140247 | G12: 300.3663647
A13: 110 | B13: 4 | C13: 59 | D13: 4.983333333 | E13: 299 | F13: 297.2855745 | G13: 286.6062493
A14: 120 | B14: 4 | C14: 40 | D14: 4.666666667 | E14: 280 | F14: 278.1800238 | G14: 264.1377482
A15: 130 | B15: 4 | C15: 11 | D15: 4.183333333 | E15: 251 | F15: 250.0667431 | G15: 233.6435552
A16: 140 | B16: 3 | C16: 33 | D16: 3.55 | E16: 213 | F16: 213.4100161 | G16: 196.050221
A17: 150 | B17: 2 | C17: 48 | D17: 2.8 | E17: 168 | F17: 168.8952626 | G17: 152.5
A18: 160 | B18: 1 | C18: 56 | D18: 1.933333333 | E18: 116 | F18: 117.4290382 | G18: 104.3161437
A19: 170 | B19: 0 | C19: 59 | D19: 0.9833333333 | E19: 59 | F19: 60.13903435 | G19: 52.96269419
A20: 180 | B20: 0 | C20: 0 | D20: 0 | E20: 0 | F20: -1.625921832 | G20: 3.736702787e-14

Sheet Moon Mean Adj
F1: Solar | G1: Course | H1: Moon | J1: Math | K1: Math Quad | L1: Polynomial
F2: Longitude | H2: Mean Adj
A3: From | B3: Mazal | C3: To | D3: Mazal | E3: Diff | F3: degrees | G3: radians | H3: minutes | I3: Sine Fit | J3: Sine Fit | K3: Sine Fit | L3: Fit
A4: 345 | B4: =DegreesInConstellationHebrew(A4) -> Dagim 15° | C4: 15 | D4: =DegreesInConstellationHebrew(C4) -> Taleh 15° | E4: =MOD(C4-A4,360) -> 30 | F4: 0 | G4: =RADIANS(F4) -> 0 | H4: 0 | I4: =30*SIN((G4)) -> 0 | J4: =-1.45731 + 0.934826 *G4 + 119.141 * SIN(G4) -> -1.45731 | K4: =-1.5254648885111 + 3.26983248079813*G4 - 0.743255687032565*G4^2 + 117.334969361741*SIN(G4) -> -1.525464889 | L4: =0.000000401298964*F4^4 - 0.000151883113*F4^3 + 0.00355765642*F4^2 + 1.93640482*F4 + 0.350322446 -> 0.350322446
A5: 15 | B5: Taleh 15° | C5: 60 | D5: T'omim 0° | E5: 45 | F5: =A5+(C5-A5)/2 -> 37.5 | G5: 0.6544984695 | H5: 15 | I5: 18.26284287 | J5: 71.6829776 | K5: 71.72525195 | L5: 70.75258088
A6: 60 | B6: T'omim 0° | C6: 120 | D6: Aryeh 0° | E6: 60 | F6: 90 | G6: 1.570796327 | H6: 30 | I6: 30 | J6: 119.1521112 | K6: 119.1118354 | L6: 119.0502089
A7: 120 | B7: Aryeh 0° | C7: 165 | D7: Betulah 15° | E7: 45 | F7: 142.5 | G7: 2.487094184 | H7: 15 | I7: 18.26284287 | J7: 73.39613572 | K7: 73.43840984 | L7: 74.50865931
A8: 165 | B8: Betulah 15° | C8: 195 | D8: Moznaim 15° | E8: 30 | F8: 180 | G8: 3.141592654 | H8: 0 | I8: 3.675445365e-15 | J8: 1.479532494 | K8: 1.411377212 | L8: -0.3434565134
A9: 195 | B9: Moznaim 15° | C9: 240 | D9: Keshet 0° | E9: 45 | F9: 217.5 | G9: 3.796091123 | H9: -15 | I9: -18.26284287 | J9: -70.43707073 | K9: -71.25242969 | L9: -74.8647642
A10: 240 | B10: Keshet 0° | C10: 300 | D10: D'li 0° | E10: 60 | F10: 270 | G10: 4.71238898 | H10: -30 | I10: -30 | J10: -116.1930463 | K10: -119.9569008 | L10: -74.31530904
A11: 300 | B11: D'li 0° | C11: 345 | D11: Dagim 15° | E11: 45 | F11: 322.5 | G11: 5.628686838 | H11: -15 | I11: -18.26284287 | J11: -68.72391261 | K11: -78.097518 | L11: 241.3649295
A12: 345 | B12: Dagim 15° | C12: 15 | D12: Taleh 15° | E12: 30 | F12: 360 | G12: 6.283185307 | H12: 0 | I12: -7.350890729e-15 | J12: 4.416374988 | K12: -10.32305989 | L12: 812.5514167
F15: Solar | G15: Course | H15: Moon
F16: Longitude | H16: Mean Adj | L16: 30
A17: From | B17: Mazal | C17: minutes
A18: 0 | B18: =DegreesInConstellationHebrew(A18) -> Taleh 0° | C18: 0
A19: 15 | B19: Taleh 15° | C19: 0
A20: 15 | B20: Taleh 15° | C20: 15
A21: 60 | B21: T'omim 0° | C21: 15
A22: 60 | B22: T'omim 0° | C22: 30
A23: 120 | B23: Aryeh 0° | C23: 30
A24: 120 | B24: Aryeh 0° | C24: 15
A25: 165 | B25: Betulah 15° | C25: 15
A26: 165 | B26: Betulah 15° | C26: 0
A27: 195 | B27: Moznaim 15° | C27: 0
A28: 195 | B28: Moznaim 15° | C28: -15
A29: 240 | B29: Keshet 0° | C29: -15
A30: 240 | B30: Keshet 0° | C30: -30
A31: 300 | B31: D'li 0° | C31: -30
A32: 300 | B32: D'li 0° | C32: -15
A33: 345 | B33: Dagim 15° | C33: -15
A34: 345 | B34: Dagim 15° | C34: 0
A35: 360 | B35: 0° | C35: 0
A38: 0 | B38: =L$16*SIN(RADIANS(A38)) -> 0
A39: =A38+15 -> 15 | B39: 7.764571353
A40: 30 | B40: 15
A41: 45 | B41: 21.21320344
A42: 60 | B42: 25.98076211
A43: 75 | B43: 28.97777479
A44: 90 | B44: 30
A45: 105 | B45: 28.97777479
A46: 120 | B46: 25.98076211
A47: 135 | B47: 21.21320344
A48: 150 | B48: 15
A49: 165 | B49: 7.764571353
A50: 180 | B50: 3.675445365e-15
A51: 195 | B51: -7.764571353
A52: 210 | B52: -15
A53: 225 | B53: -21.21320344
A54: 240 | B54: -25.98076211
A55: 255 | B55: -28.97777479
A56: 270 | B56: -30
A57: 285 | B57: -28.97777479
A58: 300 | B58: -25.98076211
A59: 315 | B59: -21.21320344
A60: 330 | B60: -15
A61: 345 | B61: -7.764571353
A62: 360 | B62: -7.350890729e-15

Sheet Course of Sun
A1: Course | B1: Course | C1: Adjust | E1: Math | F1: Math Quad | G1: Poly
A2: degrees | B2: radians | C2: minutes | D2: Sine Fit | E2: Sine Fit | F2: Sine Fit | G2: Fit
A3: 0 | B3: =RADIANS(A3) -> 0 | C3: 0 | D3: =119*SIN((B3)) -> 0 | E3: =-1.45731 + 0.934826 *B3 + 119.141 * SIN(B3) -> -1.45731 | F3: =-1.5254648885111 + 3.26983248079813*B3 - 0.743255687032565*B3^2 + 117.334969361741*SIN(B3) -> -1.525464889 | G3: =0.000000401298964*A3^4 - 0.000151883113*A3^3 + 0.00355765642*A3^2 + 1.93640482*A3 + 0.350322446 -> 0.350322446
A4: 10 | B4: 0.1745329252 | C4: 20 | D4: 20.66413314 | E4: 19.39446545 | F4: 19.39759128 | G4: 19.92226616
A5: 20 | B5: 0.3490658504 | C5: 40 | D5: 40.70039706 | E5: 39.61762773 | F5: 39.65628155 | G5: 39.35062434
A6: 30 | B6: 0.5235987756 | C6: 58 | D6: 59.5 | E6: 58.60266375 | F6: 58.65033231 | G6: 57.86856593
A7: 40 | B7: 0.6981317008 | C7: =60+15 -> 75 | D7: 76.49172555 | E7: 75.77768027 | F7: 75.8165195 | G7: 74.80557163
A8: 50 | B8: 0.872664626 | C8: =60+29 -> 89 | D8: 91.15928873 | E8: 90.62578058 | F8: 90.64578194 | G8: 89.5874339
A9: 60 | B9: 1.047197551 | C9: =60+41 -> 101 | D9: 103.0570231 | E9: 102.7007701 | F9: 102.6986888 | G9: 101.7362569
A10: 70 | B10: 1.221730476 | C10: =60+51 -> 111 | D10: 111.8234219 | E10: 111.6407139 | F10: 111.6187917 | G10: 110.8704567
A11: 80 | B11: 1.396263402 | C11: =60+57 -> 117 | D11: 117.1921226 | E11: 117.1789338 | F11: 117.1434548 | G11: 116.7047608
A12: 90 | B12: 1.570796327 | C12: =60+59 -> 119 | D12: 119 | E12: 119.1521112 | F12: 119.1118354 | G12: 119.0502089
A13: 100 | B13: 1.745329252 | C13: =60+58 -> 118 | D13: 117.1921226 | E13: 117.5052497 | F13: 117.4697706 | G13: 117.814152
A14: 110 | B14: 1.919862177 | C14: 113 | D14: 111.8234219 | E14: 112.2933456 | F14: 112.2714233 | G14: 113.0002532
A15: 120 | B15: 2.094395102 | C15: 105 | D15: 103.0570231 | E15: 103.6797176 | F15: 103.6776362 | G15: 104.7084872
A16: 130 | B16: 2.268928028 | C16: 93 | D16: 91.15928873 | E16: 91.93104391 | F16: 91.9510451 | G16: 93.13514039
A17: 140 | B17: 2.443460953 | C17: 79 | D17: 76.49172555 | E17: 77.40925943 | F17: 77.44809845 | G17: 78.57281102
A18: 150 | B18: 2.617993878 | C18: 61 | D18: 59.5 | E18: 60.56055874 | F18: 60.60822704 | G18: 61.41040905
A19: 160 | B19: 2.792526803 | C19: 42 | D19: 40.70039706 | E19: 41.90183856 | F19: 41.94049208 | G19: 42.1331562
A20: 170 | B20: 2.967059728 | C20: 21 | D20: 20.66413314 | E20: 22.00499211 | F20: 22.00811759 | G20: 21.32258594
A21: 180 | B21: 3.141592654 | C21: 0 | D21: 1.457926661e-14 | E21: 1.479532494 | F21: 1.411377212 | G21: -0.3434565134
